{"text_format":"1","workbook":"xlsx","n_sheets":2,"sheets":["Pasiūlymas","Subtiekėjai"],"not_rendered":{"charts":0,"images":0,"macros":1,"external_links":0,"defined_names":0,"comments":0,"pivot_tables":0},"unopened":[],"bounds":{"document_bytes":16777216,"sheet_cells":100000,"rows_first":2000,"rows_last":500,"rows_between":2000,"halvings":0,"cell_chars":16384,"cell_head_chars":4096},"cells_cut":0,"cells_raw":0,"read":"whole","date_system":"1900"}

{"sheet":"Pasiūlymas","index":0,"n_rows":479,"n_cols":13,"rows_kept":479,"cut":false,"hidden":false,"merged":[[19,0,19,1],[19,2,19,4],[15,0,15,1],[15,2,15,4],[16,0,16,1],[16,2,16,4],[17,0,17,1],[17,2,17,4],[28,1,28,7],[146,1,146,7],[9,0,9,1],[9,2,9,4],[10,0,10,1],[10,2,10,4],[11,0,11,1],[11,2,11,4],[12,0,12,1],[12,2,12,4],[13,0,13,1],[13,2,13,4],[14,0,14,1],[14,2,14,4],[18,0,18,1],[18,2,18,4]]}
["Perkantysis subjektas, kuriam teikiamas pasiūlymas:",null,"VŠĮ Kauno klinikinė ligoninė"]
[]
[null,"PASIŪLYMAS"]
[null,"Ortopedinių traumatologinių implantų pirkimas"]
[]
["Data:","2019.06.28"]
["Nr.:"]
["Vieta:","Vilnius"]
[]
["Tiekėjo arba tiekėjų grupės narių pavadinimas (-ai)",null,"UAB Kristameda"]
["Tiekėjo arba tiekėjo grupės narių juridinio asmens kodas (-ai) (tuo atveju, jei pasiūlymą teikia fizinis asmuo - verslo pažymėjimo Nr. ar pan.)",null,301245735]
["Tiekėjo arba tiekėjo grupės narių PVM mokėtojo kodas (-ai)",null,"LT100003755213"]
["Tiekėjų grupės narys, atstovaujantis arba vadovaujantis  tiekėjų grupei (pildoma, jei pasiūlymą teikia tiekėjų grupė)"]
["Tiekėjo valdymo ar priežiūros organo narys (-iai) ar kitas asmuo (-ys), turintis (-ys) teisę atstovauti tiekėjui ar jį kontroliuoti, jo vardu priimti sprendimą, sudaryti sandorį"]
["Tiekėjo arba atstovaujančio tiekėjų grupės nario adresas, telefono numeris, fakso numeris, el. paštas",null,"Treniotos g. 33, 08115 Vilnius; 8 600 68931; kristameda@gmail.com"]
["Tiekėjo arba atstovaujančio tiekėjų grupės nario banko pavadinimas, banko kodas, sąskaitos Nr.",null,"LT157044060008231151, AB SEB bankas"]
["Asmens, įgalioto pasirašyti sutartį, vardas, pavardė, pareigos",null,"Direktorius Gintaras Vaitkevičius"]
["Asmens, atsakingo už pirkimą, vardas, pavardė,  telefono numeris, el. paštas",null,"Gintaras Vaitkevičius, 8 600 68931, kristameda@gmail.com"]
[]
[]
[]
[]
[]
["Siūlomas pirkimo objektas visiškai atitinka pirkimo sąlygose nustatytus reikalavimus ir jo kaina yra:"]
[]
[]
[null,null,null,null,null,null,null,null,null,null,"","",""]
["Nr.","Pavadinimas","Maksimalus kiekis","Mato vienetas","Vieneto įkaina be PVM, Eur","Suma be PVM, Eur","Siūlomos prekės pavadinimas, gamintojas, prekės kodas, katalogo psl.","Siūlomo produkto parametrai"]
["1.","Plokštelės, fiksuojamos ø2,0mm sraigtais",null,null,null,null,null,null,null,""]
["1.1.","1,0 ± 0,1 mm storio 105°-115° L formos plokštelė, 4 kiaurymių, kairės pusės, 21 ± 1,0 mm ilgio, pagaminta iš titano. Fiksuojama Ø 2,0 mm kortikaliniais sraigtais.",10,"vnt.",19.63,{"$f":"IF(ISBLANK(E30),\"\", PRODUCT(C30,E30))","v":196.29999999999998},"20138204, katalogas 1, p. 106, Changzhou Kanghui Medical Innovation Co., Ltd. a Medtronic company"]
["1.1.1.","1,0 ± 0,1 mm storio 105°-115° L formos plokštelė, 4 kiaurymių, kairės pusės, 21 ± 1,0 mm ilgio, pagaminta iš titano. Fiksuojama Ø 2,0 mm kortikaliniais sraigtais. ",null,null,null,null,null,"1,0 mm storio 106° L formos plokštelė, 4 skylių, kairės pusės, 21 mm ilgio, pagaminta iš titano. Fiksuojama Ø 2,0 mm kortikaliniais sraigtais."]
["1.2.","1,0 ± 0,1 mm storio 105°-115° L formos plokštelė, 4 kiaurymių, dešinės pusės, 21 ± 1,0 mm ilgio, pagaminta iš titano. Fiksuojama Ø 2,0 mm kortikaliniais sraigtais. ",10,"vnt.",19.63,{"$f":"IF(ISBLANK(E32),\"\", PRODUCT(C32,E32))","v":196.29999999999998},"20138104, katalogas 1, p. 106, Changzhou Kanghui Medical Innovation Co., Ltd. a Medtronic company",null,null,""]
["1.2.1.","1,0 ± 0,1 mm storio 105°-115° L formos plokštelė, 4 kiaurymių, dešinės pusės, 21 ± 1,0 mm ilgio, pagaminta iš titano. Fiksuojama Ø 2,0 mm kortikaliniais sraigtais.",null,null,null,null,null,"1,0 mm storio 106° L formos plokštelė, 4 skylių, dešinės pusės, 21 mm ilgio,  pagaminta iš titano. Fiksuojama Ø 2,0 mm kortikaliniais sraigtais.",null,null,null,""]
["1.3.","1,0 ± 0,1 mm storio H formos plokštelė, 4 kiaurymių, pagaminta iš titano. Fiksuojama Ø 2,0 mm kortikaliniais sraigtais. ",10,"vnt.",19.63,{"$f":"IF(ISBLANK(E34),\"\", PRODUCT(C34,E34))","v":196.29999999999998},"20121004, katalogas 1, p. 106, Changzhou Kanghui Medical Innovation Co., Ltd. a Medtronic company",null,null,null,null,""]
["1.3.1.","1,0 ± 0,1 mm storio H formos plokštelė, 4 kiaurymių, pagaminta iš titano. Fiksuojama Ø 2,0 mm kortikaliniais sraigtais. ",null,null,null,null,null,"1,0 mm storio H formos plokštelė, 4 skylių, pagaminta iš titano. Fiksuojama Ø 2,0 mm kortikaliniais sraigtais.",null,"","",""]
["1.4.","1,0 ± 0,2 mm storio tiesi plokštelė, 4 skylių, 20-25 mm ilgio, pagaminta iš titano. Fiksuojama Ø 2,0 mm kortikaliniais sraigtais.",10,"vnt.",19.63,{"$f":"IF(ISBLANK(E36),\"\", PRODUCT(C36,E36))","v":196.29999999999998},"20101004, katalogas 1, p. 106, Changzhou Kanghui Medical Innovation Co., Ltd. a Medtronic company",null,null,"","",""]
["1.4.1.","1,0 ± 0,2 mm storio tiesi plokštelė, 4 skylių, 20-25 mm ilgio, pagaminta iš titano. Fiksuojama Ø 2,0 mm kortikaliniais sraigtais.",null,null,null,null,null,"1,0 mm storio tiesi plokštelė, 4 skylių, 25 mm ilgio, pagaminta iš titano. Fiksuojama Ø 2,0 mm kortikaliniais sraigtais.",null,"","",""]
["1.5.","1,0 ± 0,2 mm storio tiesi plokštelė, 5 kiaurymių, 25-31 mm ilgio, pagaminta iš titano. Fiksuojama Ø 2,0 mm kortikaliniais sraigtais.",10,"vnt.",19.63,{"$f":"IF(ISBLANK(E38),\"\", PRODUCT(C38,E38))","v":196.29999999999998},"20101005, katalogas 1, p. 106, Changzhou Kanghui Medical Innovation Co., Ltd. a Medtronic company"]
["1.5.1.","1,0 ± 0,2 mm storio tiesi plokštelė, 5 kiaurymių, 25-31 mm ilgio, pagaminta iš titano. Fiksuojama Ø 2,0 mm kortikaliniais sraigtais.",null,null,null,null,null,"1,0 mm storio tiesi plokštelė, 5 skylių, 31 mm ilgio, pagaminta iš titano. Fiksuojama Ø 2,0 mm kortikaliniais sraigtais."]
["1.6.","Mini kondiliarinė užrakinama plokštelė, pagaminta iš titano. Fiksuojama ø 2,0 mm užrakinamais ir ø 2,0 mm kortikaliniais sraigtais",1,"vnt.",126,{"$f":"IF(ISBLANK(E40),\"\", PRODUCT(C40,E40))","v":126},"24243100, katalogas 1, p. 57, Changzhou Kanghui Medical Innovation Co., Ltd. a Medtronic company",null,null,""]
["1.6.1.","7 kiaurymių, iš kurių viena kompresinė, dešinės pusės",null,null,null,null,null,"Mini kondiliarinė užrakinama plokštelė, 7 kiaurymių, iš kurių viena kompresinė, dešinės pusės, pagaminta iš titano. Fiksuojama Ø 2,0 mm užrakinamais ir Ø 2,0 mm kortikaliniais sraigtais."]
["1.7.","Mini kondiliarinė užrakinama plokštelė, pagaminta iš titano. Fiksuojama ø 2,0 mm užrakinamais ir ø 2,0 mm kortikaliniais sraigtais",1,"vnt.",126,{"$f":"IF(ISBLANK(E42),\"\", PRODUCT(C42,E42))","v":126},"24243200, katalogas 1, p. 57, Changzhou Kanghui Medical Innovation Co., Ltd. a Medtronic company",null,null,null,null,""]
["1.7.1.","7 kiaurymių, iš kurių viena kompresinė, kairės pusės",null,null,null,null,null,"Mini kondiliarinė užrakinama plokštelė, 7 kiaurymių, iš kurių viena kompresinė, kairės pusės, pagaminta iš titano. Fiksuojama Ø 2,0 mm užrakinamais ir Ø 2,0 mm kortikaliniais sraigtais.",null,"",null,""]
["1.8.","1,0 ± 0,05 mm storio 90° L formos plokštelė, 4 kiaurymių, kairės pusės, 19 ± 1,0 mm ilgio, pagaminta iš titano. Fiksuojama Ø 2,0 mm kortikaliniais sraigtais. ",5,"vnt.",19.63,{"$f":"IF(ISBLANK(E44),\"\", PRODUCT(C44,E44))","v":98.149999999999991},"20135204, katalogas 1, p. 106, Changzhou Kanghui Medical Innovation Co., Ltd. a Medtronic company",null,null,null,null,""]
["1.8.1.","1,0 ± 0,05 mm storio 90° L formos plokštelė, 4 kiaurymių, kairės pusės, 19 ± 1,0 mm ilgio, pagaminta iš titano. Fiksuojama Ø 2,0 mm kortikaliniais sraigtais. ",null,null,null,null,null,"1,0 mm storio 90° L formos plokštelė, 4 skylių, kairės pusės, 19 mm ilgio, pagaminta iš titano. Fiksuojama Ø 2,0 mm kortikaliniais sraigtais."]
["1.9.","1,0 ± 0,05 mm storio 90° L formos plokštelė, 4 kiaurymių, dešinės pusės, 19 ± 1,0 mm ilgio, pagaminta iš titano. Fiksuojama Ø 2,0 mm kortikaliniais sraigtais. ",5,"vnt.",19.63,{"$f":"IF(ISBLANK(E46),\"\", PRODUCT(C46,E46))","v":98.149999999999991},"20135104, katalogas 1, p. 106, Changzhou Kanghui Medical Innovation Co., Ltd. a Medtronic company",null,null,"","",""]
["1.9.1.","1,0 ± 0,05 mm storio 90° L formos plokštelė, 4 kiaurymių, dešinės pusės, 19 ± 1,0 mm ilgio, pagaminta iš titano. Fiksuojama Ø 2,0 mm kortikaliniais sraigtais. ",null,null,null,null,null,"1,0 mm storio 90° L formos plokštelė, 4 skylių, dešinės pusės, 19 mm ilgio, pagaminta iš titano. Fiksuojama Ø 2,0 mm kortikaliniais sraigtais.",null,"","",""]
["1.10.","1,3 ± 0,05 mm storio Y formos užrakinama plokštelė, 7 kiaurymių plokštelės \"stiebe\", 3 kiaurymių \"galvoje\", pagaminta iš titano. Fiksuojama Ø 2,0 mm užrakinamais ir Ø 2,0 mm kortikaliniais sraigtais.",15,"vnt.",95.43,{"$f":"IF(ISBLANK(E48),\"\", PRODUCT(C48,E48))","v":1431.45},"29476307, katalogas 1, p. 56, Changzhou Kanghui Medical Innovation Co., Ltd. a Medtronic company",null,null,"","",""]
["1.10.1.","1,3 ± 0,05 mm storio Y formos užrakinama plokštelė, 7 kiaurymių plokštelės \"stiebe\", 3 kiaurymių \"galvoje\", pagaminta iš titano. Fiksuojama Ø 2,0 mm užrakinamais ir Ø 2,0 mm kortikaliniais sraigtais.",null,null,null,null,null,"1,3 mm storio Y formos užrakinama plokštelė, 7 kiaurymių plokštelės \"stiebe\", 3 kiaurymių \"galvoje\", pagaminta iš titano. Fiksuojama Ø 2,0 mm užrakinamais ir Ø 2,0 mm kortikaliniais sraigtais."]
["1.11.","1,0 ± 0,1 mm storio T formos plokštelė, 2 kiaurymių plokštelės \"stiebe\", 2 kiaurymių \"galvoje\", 19 ± 1,0 mm ilgio, pagaminta iš titano. Fiksuojama Ø 2,0 mm kortikaliniais sraigtais. ",10,"vnt.",19.63,{"$f":"IF(ISBLANK(E50),\"\", PRODUCT(C50,E50))","v":196.29999999999998},"20123004, katalogas 1, p. 107, Changzhou Kanghui Medical Innovation Co., Ltd. a Medtronic company"]
["1.11.1.","1,0 ± 0,1 mm storio T formos plokštelė, 2 kiaurymių plokštelės \"stiebe\", 2 kiaurymių \"galvoje\", 19 ± 1,0 mm ilgio, pagaminta iš titano. Fiksuojama Ø 2,0 mm kortikaliniais sraigtais. ",null,null,null,null,null,"1,0 mm sorio T formos plokštelė, 2 kiaurymių plokštelės \"stiebe\", 2 kiaurymių \"galvoje\", 19 mm ilgio, pagaminta iš titano. Fiksuojama Ø 2,0 mm kortikaliniais sraigtais."]
["1.12.","1,0 ± 0,2 mm storio tiesi plokštelė, 6 kiaurymių, 30-37 mm ilgio, pagaminta iš titano. Fiksuojama Ø 2,0 mm kortikaliniais sraigtais.",10,"vnt.",19.63,{"$f":"IF(ISBLANK(E52),\"\", PRODUCT(C52,E52))","v":196.29999999999998},"20101006, katalogas 1, p. 106, Changzhou Kanghui Medical Innovation Co., Ltd. a Medtronic company"]
["1.12.1.","1,0 ± 0,2 mm storio tiesi plokštelė, 6 kiaurymių, 30-37 mm ilgio, pagaminta iš titano. Fiksuojama Ø 2,0 mm kortikaliniais sraigtais.",null,null,null,null,null,"1,0 mm storio tiesi plokštelė, 6 skylių, 37 mm ilgio, pagaminta iš titano. Fiksuojama Ø 2,0 mm kortikaliniais sraigtais."]
["1.13.","1,3-1,5 mm storio T formos užrakinama kondiliarinė plokštelė, 7 kiaurymių plokštelės \"stiebe\", 2 kiaurymių \"galvoje\", su tarpu tarp kiaurymių, 54 ± 1,0 mm ilgio, pagaminta iš titano. Fiksuojama Ø 2,0 mm užrakinamais ir Ø 2,0 mm kortikaliniais sraigtais.",150,"vnt",95.43,{"$f":"IF(ISBLANK(E54),\"\", PRODUCT(C54,E54))","v":14314.500000000002},"29475307, katalogas 1, p. 56, Changzhou Kanghui Medical Innovation Co., Ltd. a Medtronic company"]
["1.13.1.","1,3-1,5 mm storio T formos užrakinama kondiliarinė plokštelė, 7 kiaurymių plokštelės \"stiebe\", 2 kiaurymių \"galvoje\", su tarpu tarp kiaurymių, 54 ± 1,0 mm ilgio, pagaminta iš titano. Fiksuojama Ø 2,0 mm užrakinamais ir Ø 2,0 mm kortikaliniais sraigtais.",null,null,null,null,null,"1,5 mm storio T formos užrakinama kondiliarinė plokštelė, 7 kiaurymių plokštelės \"stiebe\", 2 kiaurymių \"galvoje\", su tarpu tarp kiaurymių, 54 mm ilgio, pagaminta iš titano. Fiksuojama Ø 2,0 mm užrakinamais ir Ø 2,0 mm kortikaliniais sraigtais."]
["1.13.2.","Perkančioji organizacija prašo 1 dalies 1.13 objekto pavyzdžio 1 vnt. pasirinktinai",null,null,null,null,null,"1,5 mm storio T formos užrakinama kondiliarinė plokštelė, 7 kiaurymių plokštelės \"stiebe\", 2 kiaurymių \"galvoje\", su tarpu tarp kiaurymių, 54 mm ilgio, pagaminta iš titano. Fiksuojama Ø 2,0 mm užrakinamais ir Ø 2,0 mm kortikaliniais sraigtais."]
["1.14.","1,3 ± 0,05 mm storio T formos užrakinama plokštelė, pagaminta iš titano. Fiksuojama Ø 2,0 mm užrakinamais ir Ø 2,0 mm kortikaliniais sraigtais",50,"vnt",95.43,{"$f":"IF(ISBLANK(E57),\"\", PRODUCT(C57,E57))","v":4771.5},"29476207, katalogas 1, p. 56, Changzhou Kanghui Medical Innovation Co., Ltd. a Medtronic company"]
["1.14.1.","7 kiaurymės plokštelės \"stiebe\", 2 kiaurymės \"galvoje\", 52 ± 1,0 mm ilgio",null,null,null,null,null,"1,3 mm storio T formos užrakinama plokštelė, pagaminta iš titano. Fiksuojama Ø 2,0 mm užrakinamais ir Ø 2,0 mm kortikaliniais sraigtais. 7 kiaurymės plokštelės \"stiebe\", 2 kiaurymės \"galvoje\", 52,5 mm ilgio."]
["1.14.2.","Perkančioji organizacija prašo1 dalies 1.14 objekto pavyzdžio 1 vnt. pasirinktinai",null,null,null,null,null,"1,3 mm storio T formos užrakinama plokštelė, pagaminta iš titano. Fiksuojama Ø 2,0 mm užrakinamais ir Ø 2,0 mm kortikaliniais sraigtais. 7 kiaurymės plokštelės \"stiebe\", 2 kiaurymės \"galvoje\", 52,5 mm ilgio."]
["1.15.","1,3 ± 0,05 mm storio T formos užrakinama plokštelė, pagaminta iš titano. Fiksuojama Ø 2,0 mm užrakinamais ir Ø 2,0 mm kortikaliniais sraigtais",20,"vnt",95.43,{"$f":"IF(ISBLANK(E60),\"\", PRODUCT(C60,E60))","v":1908.6000000000001},"29476107, katalogas 1, p. 56, Changzhou Kanghui Medical Innovation Co., Ltd. a Medtronic company"]
["1.15.1.","7 kiaurymės plokštelės \"stiebe\", 3 kiaurymės \"galvoje\", 50 ± 3,0 mm ilgio",null,null,null,null,null,"1,3 mm storio T formos užrakinama plokštelė, pagaminta iš titano. Fiksuojama Ø 2,0 mm užrakinamais ir Ø 2,0 mm kortikaliniais sraigtais. 7 kiaurymės plokštelės \"stiebe\", 3 kiaurymės \"galvoje\", 52,5 mm ilgio."]
["1.15.2.","Perkančioji organizacija prašo1 dalies  1.15 objekto pavyzdžio 1 vnt. pasirinktinai",null,null,null,null,null,"1,3 mm storio T formos užrakinama plokštelė, pagaminta iš titano. Fiksuojama Ø 2,0 mm užrakinamais ir Ø 2,0 mm kortikaliniais sraigtais. 7 kiaurymės plokštelės \"stiebe\", 3 kiaurymės \"galvoje\", 52,5 mm ilgio."]
["1.16.","1,3 ± 0,05 mm storio tiesi užrakinama kompresinė plokštelė, pagaminta iš titano. Fiksuojama Ø 2,0 mm užrakinamais ir Ø 2,0 mm kortikaliniais sraigtais.",15,"vnt",43.56,{"$f":"IF(ISBLANK(E63),\"\", PRODUCT(C63,E63))","v":653.40000000000009},"29475404, katalogas 1, p. 56, Changzhou Kanghui Medical Innovation Co., Ltd. a Medtronic company"]
["1.16.1.","4 kiaurymių",null,null,null,null,null,"1,3 mm storio tiesi užrakinama kompresinė plokštelė, pagaminta iš titano. Fiksuojama Ø 2,0 mm užrakinamais ir Ø 2,0 mm kortikaliniais sraigtais. 4 kiaurymių."]
["1.17.","1,3 ± 0,05 mm storio tiesi užrakinama kompresinė plokštelė, pagaminta iš titano. Fiksuojama Ø 2,0 mm užrakinamais ir Ø 2,0 mm kortikaliniais sraigtais.",50,"vnt",43.56,{"$f":"IF(ISBLANK(E65),\"\", PRODUCT(C65,E65))","v":2178},"29475405, katalogas 1, p. 56, Changzhou Kanghui Medical Innovation Co., Ltd. a Medtronic company"]
["1.17.1.","5 kiaurymių",null,null,null,null,null,"1,3 mm storio tiesi užrakinama kompresinė plokštelė, pagaminta iš titano. Fiksuojama Ø 2,0 mm užrakinamais ir Ø 2,0 mm kortikaliniais sraigtais. 5 kiaurymių."]
["1.18.","1,3 ± 0,05 mm storio tiesi užrakinama kompresinė plokštelė, pagaminta iš titano. Fiksuojama Ø 2,0 mm užrakinamais ir Ø 2,0 mm kortikaliniais sraigtais.",45,"vnt",43.56,{"$f":"IF(ISBLANK(E67),\"\", PRODUCT(C67,E67))","v":1960.2},"29475406, katalogas 1, p. 56, Changzhou Kanghui Medical Innovation Co., Ltd. a Medtronic company"]
["1.18.1.","6 kiaurymių",null,null,null,null,null,"1,3 mm storio tiesi užrakinama kompresinė plokštelė, pagaminta iš titano. Fiksuojama Ø 2,0 mm užrakinamais ir Ø 2,0 mm kortikaliniais sraigtais. 6 kiaurymių."]
["1.18.2.","Perkančioji organizacija prašo1dalies 1.18 objekto pavyzdžio tiesios plokštelės 6 angų 1 vnt",null,null,null,null,null,"1,3 mm storio tiesi užrakinama kompresinė plokštelė, pagaminta iš titano. Fiksuojama Ø 2,0 mm užrakinamais ir Ø 2,0 mm kortikaliniais sraigtais. 6 kiaurymių."]
["1.19.","1,3 ± 0,05 mm storio tiesi užrakinama kompresinė plokštelė, pagaminta iš titano. Fiksuojama Ø 2,0 mm užrakinamais ir Ø 2,0 mm kortikaliniais sraigtais.",5,"vnt",43.56,{"$f":"IF(ISBLANK(E70),\"\", PRODUCT(C70,E70))","v":217.8},"29475407, katalogas 1, p. 56, Changzhou Kanghui Medical Innovation Co., Ltd. a Medtronic company"]
["1.19.1.","7 kiaurymių",null,null,null,null,null,"1,3 mm storio tiesi užrakinama kompresinė plokštelė, pagaminta iš titano. Fiksuojama Ø 2,0 mm užrakinamais ir Ø 2,0 mm kortikaliniais sraigtais. 7 kiaurymių."]
["1.20.","1,3 ± 0,05 mm storio tiesi užrakinama kompresinė plokštelė, pagaminta iš titano. Fiksuojama Ø 2,0 mm užrakinamais ir Ø 2,0 mm kortikaliniais sraigtais.",5,"vnt",43.56,{"$f":"IF(ISBLANK(E72),\"\", PRODUCT(C72,E72))","v":217.8},"29475408, katalogas 1, p. 56, Changzhou Kanghui Medical Innovation Co., Ltd. a Medtronic company"]
["1.20.1.","8 kiaurymių",null,null,null,null,null,"1,3 mm storio tiesi užrakinama kompresinė plokštelė, pagaminta iš titano. Fiksuojama Ø 2,0 mm užrakinamais ir Ø 2,0 mm kortikaliniais sraigtais. 8 kiaurymių."]
["1.21.","2,0  mm kortikaliniai sraigtai, pilnu sriegiu, 8, 10, 12, 14, 16, 18, 20 mm ilgio. Pagaminti iš titano lydinio. ",440,"vnt.",5.16,{"$f":"IF(ISBLANK(E74),\"\", PRODUCT(C74,E74))","v":2270.4},"30302106 - 30302120, katalogas 1, p. 106, Changzhou Kanghui Medical Innovation Co., Ltd. a Medtronic company"]
["1.21.1.","2,0  mm kortikaliniai sraigtai, pilnu sriegiu, 8, 10, 12, 14, 16, 18, 20 mm ilgio. Pagaminti iš titano lydinio. ",null,null,null,null,null,"2,0  mm kortikaliniai sraigtai, pilnu sriegiu, 6, 8, 10, 12, 14, 16, 18, 20 mm ilgio. Pagaminti iš titano lydinio. "]
["1.21.2.","Perkančioji organizacija prašo 1 dalies 1.21 objekto pavyzdžio 2,0mm kortikaliniai sraigtai pilnu sriegiu 12 mm ilgio - 1vnt.",null,null,null,null,null,"2,0  mm kortikaliniai sraigtai, pilnu sriegiu, 12 mm ilgio. Pagaminti iš titano lydinio. "]
["1.22.","2,0 mm užrakinami sraigtai, pilnu sriegiu, dvejopų sriegių (užsriegta ir sraigto galvutė), pagaminti iš titano lydinio. Sukami šešiakampės žvaigždės formos atsuktuvu.",1300,"vnt",18.809999999999999,{"$f":"IF(ISBLANK(E77),\"\", PRODUCT(C77,E77))","v":24453},"39475606 - 39475613, katalogas 1, p. 58, Changzhou Kanghui Medical Innovation Co., Ltd. a Medtronic company"]
["1.22.1.","Nuo 6 mm iki 13 mm kas 1 mm",null,null,null,null,null,"2,0 mm užrakinami sraigtai, pilnu sriegiu, dvejopų sriegių (užsriegta ir sraigto galvutė), pagaminti iš titano lydinio. Sukami šešiakampės žvaigždės formos atsuktuvu. Nuo 6 mm iki 13 mm kas 1 mm."]
["1.22.2.","Perkančioji organizacija prašo 1 dalies 1.22 objekto pavyzdžio:  2,0 mm užrakinami sraigtai pilnu sriegiu 13 mm ilgio - 1 vnt",null,null,null,null,null,"2,0 mm užrakinami sraigtai, pilnu sriegiu, dvejopų sriegių (užsriegta ir sraigto galvutė), pagaminti iš titano lydinio. Sukami šešiakampės žvaigždės formos atsuktuvu. 13 mm ilgio."]
["1.23.","2,0 mm užrakinami sraigtai, pilnu sriegiu, dvejopų sriegių (užsriegta ir sraigto galvutė), pagaminti iš titano lydinio. Sukami šešiakampės žvaigždės formos atsuktuvu.",560,"vnt",22.59,{"$f":"IF(ISBLANK(E80),\"\", PRODUCT(C80,E80))","v":12650.4},"39475614 - 39475630, katalogas 1, p. 58, Changzhou Kanghui Medical Innovation Co., Ltd. a Medtronic company"]
["1.23.1.","Nuo 14 mm iki 30 mm kas 2 mm",null,null,null,null,null,"2,0 mm užrakinami sraigtai, pilnu sriegiu, dvejopų sriegių (užsriegta ir sraigto galvutė), pagaminti iš titano lydinio. Sukami šešiakampės žvaigždės formos atsuktuvu. Nuo 14 mm iki 30 mm kas 2 mm."]
["1.24.","2,0 mm kortikaliniai sraigtai, pilnu sriegiu, pagaminti iš titano lydinio. Sukami šešiakampės žvaigždės formos atsuktuvu.",740,"vnt",4.71,{"$f":"IF(ISBLANK(E82),\"\", PRODUCT(C82,E82))","v":3485.4},"39475506 - 39475513, katalogas 1, p. 58, Changzhou Kanghui Medical Innovation Co., Ltd. a Medtronic company"]
["1.24.1.","Nuo 6 mm iki 13 mm kas 1 mm",null,null,null,null,null,"2,0 mm kortikaliniai sraigtai, pilnu sriegiu, pagaminti iš titano lydinio. Sukami šešiakampės žvaigždės formos atsuktuvu. Nuo 6 mm iki 13 mm kas 1 mm."]
["1.24.2.","Perkančioji organizacija prašo 1 dalies 1.24 objekto pavyzdžio: 2,0 mm kortikaliniai sraigtai pilnu sriegiu, sukami šešiakampės žvaigždės formos atsuktuvu, 13 mm ilgio - 1 vnt.",null,null,null,null,null,"2,0 mm kortikaliniai sraigtai, pilnu sriegiu, pagaminti iš titano lydinio. Sukami šešiakampės žvaigždės formos atsuktuvu. 13 mm ilgio."]
["1.25.","2,0 mm kortikaliniai sraigtai, pilnu sriegiu, pagaminti iš titano lydinio. Sukami šešiakampės žvaigždės formos atsuktuvu.",580,"vnt",5.64,{"$f":"IF(ISBLANK(E85),\"\", PRODUCT(C85,E85))","v":3271.2},"39475514 - 39475530, katalogas 1, p. 58, Changzhou Kanghui Medical Innovation Co., Ltd. a Medtronic company"]
["1.25.1.","Nuo 14 mm iki 30 mm kas 2 mm",null,null,null,null,null,"2,0 mm kortikaliniai sraigtai, pilnu sriegiu, pagaminti iš titano lydinio. Sukami šešiakampės žvaigždės formos atsuktuvu. Nuo 14 mm iki 30 mm kas 2 mm."]
["1.26.","Atsuktuvas Ø 2,0 mm kortikaliniams sraigtams",5,"vnt.",31.74,{"$f":"IF(ISBLANK(E87),\"\", PRODUCT(C87,E87))","v":158.69999999999999},"01211, katalogas 1, p. 112, Changzhou Kanghui Medical Innovation Co., Ltd. a Medtronic company"]
["1.26.1.","1,5 mm pločio",null,null,null,null,null,"Atsuktuvas Ø 2,0 mm kortikaliniams sraigtams, 1,5 mm pločio."]
["1.27.","Atsuktuvas Ø 2,0 mm užrakinamiems sraigtams",2,"vnt.",62.44,{"$f":"IF(ISBLANK(E89),\"\", PRODUCT(C89,E89))","v":124.88},"98099, katalogas 1, p. 63, Changzhou Kanghui Medical Innovation Co., Ltd. a Medtronic company"]
["1.27.1.","Šešiakampės žvaigždės formos",null,null,null,null,null,"Atsuktuvas Ø 2,0 mm užrakinamiems sraigtams, šešiakampės žvaigždės formos."]
["1.28.","Sraigtų laikymo įvore",2,"vnt.",37.18,{"$f":"IF(ISBLANK(E91),\"\", PRODUCT(C91,E91))","v":74.36},"98097, katalogas 1, p. 63, Changzhou Kanghui Medical Innovation Co., Ltd. a Medtronic company"]
["1.28.1.","Ø 2,0 mm užrakinamiems sraigtams",null,null,null,null,null,"Sraigtų laikymo įvore Ø 2,0 mm užrakinamiems sraigtams"]
["1.29.","Kiršnerio viela, kurios vienas galas užaštrintas",40,"vnt.",1.72,{"$f":"IF(ISBLANK(E93),\"\", PRODUCT(C93,E93))","v":68.8},"10701070, katalogas 1, p. 200, Changzhou Kanghui Medical Innovation Co., Ltd. a Medtronic company"]
["1.29.1.","Vielos ilgis 70 mm, skersmuo 0,8 mm",null,null,null,null,null,"Kiršnerio viela, kurios vienas galas užaštrintas, vielos ilgis 70 mm, skersmuo 0,8 mm"]
["1.30.","Kiršnerio viela, kurios vienas galas užaštrintas",20,"vnt.",1.72,{"$f":"IF(ISBLANK(E95),\"\", PRODUCT(C95,E95))","v":34.4},"10701120, katalogas 1, p. 200, Changzhou Kanghui Medical Innovation Co., Ltd. a Medtronic company"]
["1.30.1.","Vielos ilgis 120 mm, skersmuo 0,8 mm",null,null,null,null,null,"Kiršnerio viela, kurios vienas galas užaštrintas, vielos ilgis 120 mm, skersmuo 0,8 mm"]
["1.31.","Kiršnerio viela, kurios vienas galas užaštrintas",10,"vnt.",1.72,{"$f":"IF(ISBLANK(E97),\"\", PRODUCT(C97,E97))","v":17.2},"10702120, katalogas 1, p. 200, Changzhou Kanghui Medical Innovation Co., Ltd. a Medtronic company"]
["1.31.1.","Vielos ilgis 120 mm, skersmuo 1,0 mm",null,null,null,null,null,"Kiršnerio viela, kurios vienas galas užaštrintas, vielos ilgis 120 mm, skersmuo 1,0 mm"]
["1.32.","Kiršnerio viela, kurios vienas galas užaštrintas",10,"vnt.",1.72,{"$f":"IF(ISBLANK(E99),\"\", PRODUCT(C99,E99))","v":17.2},"10702150, katalogas 1, p. 200, Changzhou Kanghui Medical Innovation Co., Ltd. a Medtronic company"]
["1.32.1.","Vielos ilgis 150 mm, skersmuo 1,0 mm",null,null,null,null,null,"Kiršnerio viela, kurios vienas galas užaštrintas, vielos ilgis 150 mm, skersmuo 1,0 mm"]
["1.33.","Kiršnerio viela, kurios vienas galas užaštrintas",10,"vnt.",1.72,{"$f":"IF(ISBLANK(E101),\"\", PRODUCT(C101,E101))","v":17.2},"10702250, katalogas 1, p. 200, Changzhou Kanghui Medical Innovation Co., Ltd. a Medtronic company"]
["1.33.1.","Vielos ilgis 250 mm, skersmuo 1,0 mm",null,null,null,null,null,"Kiršnerio viela, kurios vienas galas užaštrintas, vielos ilgis 250 mm, skersmuo 1,0 mm"]
["1.34.","Kiršnerio viela, kurios vienas galas užaštrintas",10,"vnt.",1.72,{"$f":"IF(ISBLANK(E103),\"\", PRODUCT(C103,E103))","v":17.2},"10702300, katalogas 1, p. 200, Changzhou Kanghui Medical Innovation Co., Ltd. a Medtronic company"]
["1.34.1.","Vielos ilgis 300 mm, skersmuo 1,0 mm",null,null,null,null,null,"Kiršnerio viela, kurios vienas galas užaštrintas, vielos ilgis 300 mm, skersmuo 1,0 mm"]
["1.35.","Grąžtas",20,"vnt.",21.28,{"$f":"IF(ISBLANK(E105),\"\", PRODUCT(C105,E105))","v":425.6},"00103, katalogas 1, p. 111, Changzhou Kanghui Medical Innovation Co., Ltd. a Medtronic company"]
["1.35.1.","Ø 2,0 mm",null,null,null,null,null,"Grąžtas Ø 2,0 mm"]
["1.36.","Grąžtas",20,"vnt",21.28,{"$f":"IF(ISBLANK(E107),\"\", PRODUCT(C107,E107))","v":425.6},"00102, katalogas 1, p. 111, Changzhou Kanghui Medical Innovation Co., Ltd. a Medtronic company"]
["1.36.1.","Ø 1,5 mm",null,null,null,null,null,"Grąžtas Ø 1,5 mm"]
["1.37.","Instrumentai, skirti rankų ir pėdų kaulams fiksuoti. Privaloma pateikti 2 instrumentų rinkinius panaudos būdu. Plokštelės, sraigtai ir instrumentai privalo būti pagaminti to paties gamintojo. Vieno rinkinio sudėtis",2,"rinkinys",0,{"$f":"IF(ISBLANK(E109),\"\", PRODUCT(C109,E109))","v":0},"01900, katalogas 1, p. 109, Changzhou Kanghui Medical Innovation Co., Ltd. a Medtronic company"]
["1.37.1.","Sriegiklis, kortikalinis Ø 2,0 mm sraigtams - 1 vnt",null,null,null,null,null,"Sriegiklis, kortikalinis Ø 2,0 mm sraigtams"]
["1.37.2.","2.0 mm implantų ir instrumentų sterilizavimo konteineris - 1vnt.",null,null,null,null,null,"2.0 mm implantų ir instrumentų sterilizavimo konteineris"]
["1.37.3.","Atsuktuvas 1,5 mm pločio, sraigtams su kvadratiniu sukimu - 2 vnt.",null,null,null,null,null,"Atsuktuvas 1,5 mm pločio, sraigtams su kvadratiniu sukimu"]
["1.37.4.","Grąžtas Ø 1,5 mm - 2 vnt",null,null,null,null,null,"Grąžtas Ø 1,5 mm"]
["1.37.5.","Universalus grąžto nukreipėjas Ø 2,0 mm - 1 vnt.",null,null,null,null,null,"Universalus grąžto nukreipėjas Ø 2,0 mm"]
["1.37.6.","Sraigto prasukta galva išėmėjas Ø 2,0 mm sraigtams - 1 vnt.",null,null,null,null,null,"Sraigto prasukta galva išėmėjas Ø 2,0 mm sraigtams"]
["1.37.7.","Sterilizavimo konteineris 2,0 mm rinkinio instrumentams, plokštelėms ir sraigtams. Su skylutėmis sraigtams ir vietomis plokštelėms ir instrumentams. Su sraigtų ilgio matuokle - 1 vnt.",null,null,null,null,null,"Sterilizavimo konteineris 2,0 mm rinkinio instrumentams, plokštelėms ir sraigtams  Su skylutėmis sraigtams ir vietomis plokštelėms ir instrumentams.  Su sraigtų ilgio matuokle."]
["1.37.8.","Dėžė instrumentų ir 3 rinkinių dėklų sterilizavimui - 1 vnt.",null,null,null,null,null,"Dėžė instrumentų ir 3 rinkinių dėklų sterilizavimui"]
["1.37.9.","Dėžė 2.0 LCP bendrųjų instrumentų sterilizavimui - 1 vnt.",null,null,null,null,null,"Dėžė 2.0 LCP bendrųjų instrumentų sterilizavimui"]
["1.37.10.","Rankenėlė su greito prijungimo mova - 2 vnt",null,null,null,null,null,"Rankenėlė su greito prijungimo mova"]
["1.37.11.","Sraigtų laikymo replės - 1 vnt.",null,null,null,null,null,"Sraigtų laikymo replės"]
["1.37.12.","Plokštelių laikymo replės 2.0 - 1 vnt.",null,null,null,null,null,"Plokštelių laikymo replės 2.0"]
["1.37.13.","Užsifiksuojančios plokštelių laikymo replės - 1 vnt",null,null,null,null,null,"Užsifiksuojančios plokštelių laikymo replės"]
["1.37.14.","Rankenėlė su greito prijungimo mova Ø 4,5 mm - 2 vnt",null,null,null,null,null,"Rankenėlė su greito prijungimo mova Ø 4,5 mm "]
["1.37.15.","Lenkėjai plokštelėms - 2 vnt.",null,null,null,null,null,"Lenkėjai plokštelėms"]
["1.37.16.","Aštrios žnyplės lūžgalių reparacijai ir fiksacijai (siauros), 150 ± 3,0 mm ilgio, užsifiksuojančios - 1 vnt.",null,null,null,null,null,"Aštrios žnyplės lūžgalių reparacijai ir fiksacijai (siauros) 150 mm ilgio, užsifiksuojančios"]
["1.37.17.","Aštrios žnyplės dantytais galais 150 ± 3,0 mm ilgio, užsifiksuojančios - 1 vnt.",null,null,null,null,null,"Aštrios žnyplės dantytais galais 150 mm ilgio, užsifiksuojančios"]
["1.37.18.","Aštrus kabliukas 155 ± 3,0 mm ilgio - 1 vnt",null,null,null,null,null,"Aštrus kabliukas 155 mm ilgio"]
["1.37.19.","Antkaulio elevatorius 160 ± 3,0 mm ilgio, 3 mm pločio, vienas galas tiesus, kitas galas apvalus - 1 vnt",null,null,null,null,null,"Antkaulio elevatorius 160  mm ilgio, 3 mm pločio, vienas galas tiesus, kitas galas apvalus"]
["1.37.20.","Antkaulio elevatorius 160 ± 3,0  mm ilgio,  6 mm pločio, vienas galas tiesus, kitas galas apvalus - 1 vn",null,null,null,null,null,"Antkaulio elevatorius 160 mm ilgio,  6 mm pločio, vienas galas tiesus, kitas galas apvalus"]
["1.37.21.","Gylio matuoklis. Skalė 0 - 40 mm - 1 vnt",null,null,null,null,null,"Gylio matuoklis, skalė 0 - 40 mm"]
["1.37.22.","Plokštelės laikiklis 165 ± 3,0 mm ilgio, užsifiksuojantis - 1 vnt.",null,null,null,null,null,"Plokštelės laikiklis 165 mm ilgio, užsifiksuojantis"]
["1.37.23.","Retraktorius. Ilgis 160 ± 3,0 mm, plotis 6 mm - 1 vnt.",null,null,null,null,null,"Retraktorius, ilgis 160 mm, plotis 6 mm"]
["1.37.24.","Retraktorius. Ilgis 160 ± 3,0 mm, plotis 8 mm - 1 vnt.",null,null,null,null,null,"Retraktorius, ilgis 160 mm, plotis 8 mm"]
["1.37.25.","Retraktorius. Ilgis 160 ± 3,0 mm, plotis 15  mm - 1 vnt.",null,null,null,null,null,"Retraktorius, ilgis 160 mm, plotis 15 mm"]
["1.37.26.","Plokštelių lenkiklis, įsisukantis į plokštelę Ø 2,0 mm -",null,null,null,null,null,"Plokštelių lenkiklis, įsisukantis į plokštelę Ø 2,0 mm"]
["1.37.27.","Kiaurymės gylio matuoklis Ø 2,0 mm sraigtams - 1 vnt.",null,null,null,null,null,"Kiaurymės gylio matuoklis Ø 2,0 mm sraigtams"]
["1.37.28.","Dvipusis grąžto kreiptuvas su slankiojančiu nukreipėju Ø 1,5 ir 2,0 mm grąžtams - 1 vnt.",null,null,null,null,null,"Dvipusis grąžto kreiptuvas su slankiojančiu nukreipėju Ø 1,5 ir 2,0 mm grąžtams"]
["1.37.29.","Grąžtas Ø 1,5 mm - 2 vnt.",null,null,null,null,null,"Grąžtas Ø 1,5 mm "]
["1.37.30.","Grąžtas Ø 2,0 mm - 2 vnt.",null,null,null,null,null,"Grąžtas Ø 2,0 mm"]
["1.37.31.","Angos platintuvas kaule Ø 2,0 mm - 2 vnt.",null,null,null,null,null,"Angos platintuvas kaule Ø 2,0 mm"]
["1.37.32.","Atsuktuvas Ø 2,0 mm - 2 vnt.",null,null,null,null,null,"Atsuktuvas Ø 2,0 mm "]
["1.37.33.","Sraigtų laikymo įvore Ø 2,0 mm - 2 vnt.",null,null,null,null,null,"Sraigtų laikymo įvore Ø 2,0 mm"]
[null,null,null,null,"Suma be PVM",{"$f":"IF((COUNT(C30:C142)<>COUNT(F30:F142)),\"\", SUM(F30:F142))","v":76987.189999999988},{"$f":"IF((COUNT(C30:C142)<>COUNT(F30:F142)),\"Neužpildytos visų objektų kainos\", SUM(F30:F142))","v":76987.189999999988}]
[null,null,null,null,"PVM suma",4042.82]
[null,null,null,null,"Suma su PVM",{"$f":"IF(ISBLANK(F144), \"\", SUM(F143:F144))","v":81030.009999999995}]
[]
["2.","Intramedulinės vinys ir sraigtai"]
["2.1.","Ø 7,0 mm intramedulinės žąstikaulio vinys, pagamintos iš titano lydinio. ",1,"vnt.",125.02,{"$f":"IF(ISBLANK(E148),\"\", PRODUCT(C148,E148))","v":125.02},"30961018, katalogas 3, p. 135, Changzhou Kanghui Medical Innovation Co., Ltd. a Medtronic company"]
["2.1.1.","7 mm x 180 mm",null,null,null,null,null,"Ø 7,0 mm intramedulinės žąstikaulio vinys, pagamintos iš titano lydinio, 7 mm x 180 mm"]
["2.2.","Ø 7,0 mm intramedulinės žąstikaulio vinys, pagamintos iš titano lydinio. ",1,"vnt.",125.02,{"$f":"IF(ISBLANK(E150),\"\", PRODUCT(C150,E150))","v":125.02},"30961020, katalogas 3, p. 135, Changzhou Kanghui Medical Innovation Co., Ltd. a Medtronic company"]
["2.2.1.","7 mm x 200 mm",null,null,null,null,null,"Ø 7,0 mm intramedulinės žąstikaulio vinys, pagamintos iš titano lydinio, 7 mm x 200 mm"]
["2.3.","Ø 7,0 mm intramedulinės žąstikaulio vinys, pagamintos iš titano lydinio. ",1,"vnt.",136.47,{"$f":"IF(ISBLANK(E152),\"\", PRODUCT(C152,E152))","v":136.47},"30961022, katalogas 3, p. 135, Changzhou Kanghui Medical Innovation Co., Ltd. a Medtronic company"]
["2.3.1.","7 mm x 220 mm",null,null,null,null,null,"Ø 7,0 mm intramedulinės žąstikaulio vinys, pagamintos iš titano lydinio, 7 mm x 220 mm"]
["2.4.","Ø 7,0 mm intramedulinės žąstikaulio vinys, pagamintos iš titano lydinio. ",1,"vnt.",136.47,{"$f":"IF(ISBLANK(E154),\"\", PRODUCT(C154,E154))","v":136.47},"30961024, katalogas 3, p. 135, Changzhou Kanghui Medical Innovation Co., Ltd. a Medtronic company"]
["2.4.1.","7 mm x 240 mm",null,null,null,null,null,"Ø 7,0 mm intramedulinės žąstikaulio vinys, pagamintos iš titano lydinio, 7 mm x 240 mm"]
["2.4.2.","Perkančioji organizacija prašo 2 dalies 2.4 objekto pavyzdžio - 1 vnt",null,null,null,null,null,"Ø 7,0 mm intramedulinės žąstikaulio vinys, pagamintos iš titano lydinio, 7 mm x 240 mm"]
["2.5.","Ø 7,0 mm intramedulinės žąstikaulio vinys, pagamintos iš titano lydinio. ",1,"vnt.",136.47,{"$f":"IF(ISBLANK(E157),\"\", PRODUCT(C157,E157))","v":136.47},"30961026, katalogas 3, p. 135, Changzhou Kanghui Medical Innovation Co., Ltd. a Medtronic company"]
["2.5.1.","7 mm x 260 mm",null,null,null,null,null,"Ø 7,0 mm intramedulinės žąstikaulio vinys, pagamintos iš titano lydinio, 7 mm x 260 mm"]
["2.6.","Ø 7,0 mm intramedulinės žąstikaulio vinys, pagamintos iš titano lydinio. ",1,"vnt.",136.47,{"$f":"IF(ISBLANK(E159),\"\", PRODUCT(C159,E159))","v":136.47},"30961028, katalogas 3, p. 135, Changzhou Kanghui Medical Innovation Co., Ltd. a Medtronic company"]
["2.6.1.","7 mm x 280 mm",null,null,null,null,null,"Ø 7,0 mm intramedulinės žąstikaulio vinys, pagamintos iš titano lydinio, 7 mm x 280 mm"]
["2.7.","Ø 7,0 mm intramedulinės žąstikaulio vinys, pagamintos iš titano lydinio. ",1,"vnt.",136.47,{"$f":"IF(ISBLANK(E161),\"\", PRODUCT(C161,E161))","v":136.47},"30961030, katalogas 3, p. 135, Changzhou Kanghui Medical Innovation Co., Ltd. a Medtronic company"]
["2.7.1.","7 mm x 300 mm",null,null,null,null,null,"Ø 7,0 mm intramedulinės žąstikaulio vinys, pagamintos iš titano lydinio, 7 mm x 300 mm"]
["2.8.","Ø 8,0 mm intramedulinės žąstikaulio vinys, pagamintos iš titano lydinio. ",2,"vnt.",125.02,{"$f":"IF(ISBLANK(E163),\"\", PRODUCT(C163,E163))","v":250.04},"30962018, katalogas 3, p. 135, Changzhou Kanghui Medical Innovation Co., Ltd. a Medtronic company"]
["2.8.1.","8 mm x 180 mm",null,null,null,null,null,"Ø 8,0 mm intramedulinės žąstikaulio vinys, pagamintos iš titano lydinio, 8 mm x 180 mm"]
["2.9.","Ø 8,0 mm intramedulinės žąstikaulio vinys, pagamintos iš titano lydinio. ",2,"vnt.",125.02,{"$f":"IF(ISBLANK(E165),\"\", PRODUCT(C165,E165))","v":250.04},"30962020, katalogas 3, p. 135, Changzhou Kanghui Medical Innovation Co., Ltd. a Medtronic company"]
["2.9.1.","8 mm x 200 mm",null,null,null,null,null,"Ø 8,0 mm intramedulinės žąstikaulio vinys, pagamintos iš titano lydinio, 8 mm x 200 mm"]
["2.10.","Ø 8,0 mm intramedulinės žąstikaulio vinys, pagamintos iš titano lydinio. ",6,"vnt.",146.47,{"$f":"IF(ISBLANK(E167),\"\", PRODUCT(C167,E167))","v":878.81999999999994},"30962022, katalogas 3, p. 135, Changzhou Kanghui Medical Innovation Co., Ltd. a Medtronic company"]
["2.10.1.","8 mm x 220 mm",null,null,null,null,null,"Ø 8,0 mm intramedulinės žąstikaulio vinys, pagamintos iš titano lydinio, 8 mm x 220 mm"]
["2.11.","Ø 8,0 mm intramedulinės žąstikaulio vinys, pagamintos iš titano lydinio. ",8,"vnt.",146.47,{"$f":"IF(ISBLANK(E169),\"\", PRODUCT(C169,E169))","v":1171.76},"30962024, katalogas 3, p. 135, Changzhou Kanghui Medical Innovation Co., Ltd. a Medtronic company"]
["2.11.1.","8 mm x 240 mm",null,null,null,null,null,"Ø 8,0 mm intramedulinės žąstikaulio vinys, pagamintos iš titano lydinio, 8 mm x 240 mm"]
["2.11.2.","Perkančioji organizacija prašo 2 dalies 2.11 objekto pavyzdžio - 1 vnt",null,null,null,null,null,"Ø 8,0 mm intramedulinės žąstikaulio vinys, pagamintos iš titano lydinio, 8 mm x 240 mm"]
["2.12.","Ø 8,0 mm intramedulinės žąstikaulio vinys, pagamintos iš titano lydinio. ",2,"vnt.",146.47,{"$f":"IF(ISBLANK(E172),\"\", PRODUCT(C172,E172))","v":292.94},"30962026, katalogas 3, p. 135, Changzhou Kanghui Medical Innovation Co., Ltd. a Medtronic company"]
["2.12.1.","8 mm x 260 mm",null,null,null,null,null,"Ø 8,0 mm intramedulinės žąstikaulio vinys, pagamintos iš titano lydinio, 8 mm x 260 mm"]
["2.13.","Ø 8,0 mm intramedulinės žąstikaulio vinys, pagamintos iš titano lydinio. ",2,"vnt.",146.47,{"$f":"IF(ISBLANK(E174),\"\", PRODUCT(C174,E174))","v":292.94},"30962028, katalogas 3, p. 135, Changzhou Kanghui Medical Innovation Co., Ltd. a Medtronic company"]
["2.13.1.","8 mm x 280 mm",null,null,null,null,null,"Ø 8,0 mm intramedulinės žąstikaulio vinys, pagamintos iš titano lydinio, 8 mm x 280 mm"]
["2.14.","Ø 8,0 mm intramedulinės žąstikaulio vinys, pagamintos iš titano lydinio. ",1,"vnt.",146.47,{"$f":"IF(ISBLANK(E176),\"\", PRODUCT(C176,E176))","v":146.47},"30962030, katalogas 3, p. 135, Changzhou Kanghui Medical Innovation Co., Ltd. a Medtronic company"]
["2.14.1.","8 mm x 300 mm",null,null,null,null,null,"Ø 8,0 mm intramedulinės žąstikaulio vinys, pagamintos iš titano lydinio, 8 mm x 300 mm"]
["2.15.","Ø 9,0 mm intramedulinės žąstikaulio vinys, pagamintos iš titano lydinio. ",3,"vnt.",125.02,{"$f":"IF(ISBLANK(E178),\"\", PRODUCT(C178,E178))","v":375.06},"30963018, katalogas 3, p. 135, Changzhou Kanghui Medical Innovation Co., Ltd. a Medtronic company"]
["2.15.1.","9 mm x 180 mm",null,null,null,null,null,"Ø 9,0 mm intramedulinės žąstikaulio vinys, pagamintos iš titano lydinio, 9 mm x 180 mm"]
["2.16.","Ø 9,0 mm intramedulinės žąstikaulio vinys, pagamintos iš titano lydinio. ",14,"vnt.",146.47,{"$f":"IF(ISBLANK(E180),\"\", PRODUCT(C180,E180))","v":2050.58},"30963020, katalogas 3, p. 135, Changzhou Kanghui Medical Innovation Co., Ltd. a Medtronic company"]
["2.16.1.","9 mm x 200 mm",null,null,null,null,null,"Ø 9,0 mm intramedulinės žąstikaulio vinys, pagamintos iš titano lydinio, 9 mm x 200 mm"]
["2.17.","Ø 9,0 mm intramedulinės žąstikaulio vinys, pagamintos iš titano lydinio. ",25,"vnt.",146.47,{"$f":"IF(ISBLANK(E182),\"\", PRODUCT(C182,E182))","v":3661.75},"30963022, katalogas 3, p. 135, Changzhou Kanghui Medical Innovation Co., Ltd. a Medtronic company"]
["2.17.1.","9 mm x 220 mm",null,null,null,null,null,"Ø 9,0 mm intramedulinės žąstikaulio vinys, pagamintos iš titano lydinio, 9 mm x 220 mm"]
["2.18.","Ø 9,0 mm intramedulinės žąstikaulio vinys, pagamintos iš titano lydinio. ",25,"vnt.",146.47,{"$f":"IF(ISBLANK(E184),\"\", PRODUCT(C184,E184))","v":3661.75},"30963024, katalogas 3, p. 135, Changzhou Kanghui Medical Innovation Co., Ltd. a Medtronic company"]
["2.18.1.","9 mm x 240 mm",null,null,null,null,null,"Ø 9,0 mm intramedulinės žąstikaulio vinys, pagamintos iš titano lydinio, 9 mm x 240 mm"]
["2.18.2.","Perkančioji organizacija prašo 2  dalies 2.18 objekto pavyzdžio - 1 vnt",null,null,null,null,null,"Ø 9,0 mm intramedulinės žąstikaulio vinys, pagamintos iš titano lydinio, 9 mm x 240 mm"]
["2.19.","Ø 9,0 mm intramedulinės žąstikaulio vinys, pagamintos iš titano lydinio. ",15,"vnt.",146.47,{"$f":"IF(ISBLANK(E187),\"\", PRODUCT(C187,E187))","v":2197.0500000000002},"30963026, katalogas 3, p. 135, Changzhou Kanghui Medical Innovation Co., Ltd. a Medtronic company"]
["2.19.1.","9 mm x 260 mm",null,null,null,null,null,"Ø 9,0 mm intramedulinės žąstikaulio vinys, pagamintos iš titano lydinio, 9 mm x 260 mm"]
["2.20.","Ø 9,0 mm intramedulinės žąstikaulio vinys, pagamintos iš titano lydinio. ",5,"vnt.",146.47,{"$f":"IF(ISBLANK(E189),\"\", PRODUCT(C189,E189))","v":732.35},"30963028, katalogas 3, p. 135, Changzhou Kanghui Medical Innovation Co., Ltd. a Medtronic company"]
["2.20.1.","9 mm x 280 mm",null,null,null,null,null,"Ø 9,0 mm intramedulinės žąstikaulio vinys, pagamintos iš titano lydinio, 9 mm x 280 mm"]
["2.21.","Ø 9,0 mm intramedulinės žąstikaulio vinys, pagamintos iš titano lydinio. ",1,"vnt.",146.47,{"$f":"IF(ISBLANK(E191),\"\", PRODUCT(C191,E191))","v":146.47},"30963030, katalogas 3, p. 135, Changzhou Kanghui Medical Innovation Co., Ltd. a Medtronic company"]
["2.21.1.","9 mm x 300 mm",null,null,null,null,null,"Ø 9,0 mm intramedulinės žąstikaulio vinys, pagamintos iš titano lydinio, 9 mm x 300 mm"]
["2.22.","Ø 3,0 - 3,5 mm sraigtai, pagaminti iš titano lydinio. ",100,"vnt.",15.85,{"$f":"IF(ISBLANK(E193),\"\", PRODUCT(C193,E193))","v":1585},"30381120 - 30381160, katalogas 3, p. 136, Changzhou Kanghui Medical Innovation Co., Ltd. a Medtronic company"]
["2.22.1.","Nuo 20 mm iki 60 mm, ne mažiau 7 ilgių",null,null,null,null,null,"3,5 mm sraigtai, pagaminti iš titano lydinio. Nuo 20 mm iki 60 mm kas 2 mm."]
["2.22.2.","Perkančioji organizacija prašo 2 dalies 2.22 objekto pavyzdžio - 1 vnt pasirinktinai",null,null,null,null,null,"3,5 mm sraigtai, pagaminti iš titano lydinio, 26 mm ilgio."]
["2.23.","Ø 4,0 - 4,8 mm sraigtai, pagaminti iš titano lydinio. ",260,"vnt.",17.53,{"$f":"IF(ISBLANK(E196),\"\", PRODUCT(C196,E196))","v":4557.8},"30382120 - 30382160, katalogas 3, p. 136, Changzhou Kanghui Medical Innovation Co., Ltd. a Medtronic company"]
["2.23.1.","Nuo 20 mm iki 60 mm, ne mažiau 8 ilgių",null,null,null,null,null,"Ø 4,8 mm sraigtai, pagaminti iš titano lydinio. Nuo 20 mm iki 60 mm kas 2 mm."]
["2.23.2.","Perkančioji organizacija prašo 2 dalies 2.23 objekto pavyzdžio - 1 vnt pasirinktinai",null,null,null,null,null,"Ø 4,8 mm sraigtai, pagaminti iš titano lydinio, 28 mm ilgio."]
["2.24.","Ø 4,5 - 5,0 mm sraigtai, pagaminti iš titano lydinio. ",80,"vnt.",17.53,{"$f":"IF(ISBLANK(E199),\"\", PRODUCT(C199,E199))","v":1402.4},"30383130 - 30383160, katalogas 3, p. 136, Changzhou Kanghui Medical Innovation Co., Ltd. a Medtronic company"]
["2.24.1.","Nuo 20 mm iki 60 mm, ne mažiau 8 ilgių",null,null,null,null,null,"Ø 5,0 mm sraigtai, pagaminti iš titano lydinio. Nuo 30 mm iki 60 mm kas 2 mm."]
["2.24.2.","Perkančioji organizacija prašo 2 dalies 2.24 objekto pavyzdžio - 1 vnt pasirinktinai",null,null,null,null,null,"Ø 5,0 mm sraigtai, pagaminti iš titano lydinio, 38 mm ilgio."]
["2.25.","Žąstikaulio vinies aklė, pagaminta iš titano lydinio.",40,"vnt.",11.91,{"$f":"IF(ISBLANK(E202),\"\", PRODUCT(C202,E202))","v":476.4},"30964000, katalogas 3, p. 137, Changzhou Kanghui Medical Innovation Co., Ltd. a Medtronic company"]
["2.25.1.","Žąstikaulio vinies aklė, pagaminta iš titano lydinio.",null,null,null,null,null,"Žąstikaulio vinies aklė, pagaminta iš titano lydinio."]
["2.26.","Kaniuliuotos titaninės šlaunikaulio vinys, įvedamos anterogradiškai. Proksimaliniame vinies gale yra ≥ 3 kiaurymės fiksuojantiems sraigtams. Distaliniame vinies gale yra ≥ 2 kiaurymes (viena iš jų pailga) skersinio fiksavimo sraigtams. Būtina galimybė naudoti ir kaip rekonstrukcinę vinį, su dviem Ø 6,3 - 7,5 mm skersinio tvirtinimo sraigtais proksimaliniame vinies gale.",60,"vnt.",312.73,{"$f":"IF(ISBLANK(E204),\"\", PRODUCT(C204,E204))","v":18763.800000000003},"33101132 - 33104244, katalogas 1, p. 159, Changzhou Kanghui Medical Innovation Co., Ltd. a Medtronic company"]
["2.26.1.","Vinių skersmenys 9-10, 10,5-11, 11,5-12 mm; Vinių ilgiai 320 – 440 mm kas 20 mm, ne mažiau 6 ilgių; Dešinės pusės, Kairės pusės.",null,null,null,null,null,"Kaniuliuotos titaninės šlaunikaulio vinys, įvedamos anterogradiškai. Proksimaliniame vinies gale yra 3 kiaurymės fiksuojantiems sraigtams. Distaliniame vinies gale yra 2 kiaurymės (viena iš jų pailga) skersinio fiksavimo sraigtams. Yra galimybė naudoti ir kaip rekonstrukcinę vinį, su dviem Ø 6,3 mm skersinio tvirtinimo sraigtais proksimaliniame vinies gale. Vinių skersmenys 9.5, 10, 11, 12 mm. Vinių ilgiai 320 – 440 mm kas 20 mm. Dešinės pusės, kairės pusės."]
["2.26.2.","Perkančioji organizacija prašo 2 dalies 2.26 objekto pavyzdžio - 1 vnt pasirinktinai",null,null,null,null,null,"Kaniuliuotos titaninės šlaunikaulio vinys, įvedamos anterogradiškai. Proksimaliniame vinies gale yra 3 kiaurymės fiksuojantiems sraigtams. Distaliniame vinies gale yra 2 kiaurymės (viena iš jų pailga) skersinio fiksavimo sraigtams. Yra galimybė naudoti ir kaip rekonstrukcinę vinį, su dviem Ø 6,3 mm skersinio tvirtinimo sraigtais proksimaliniame vinies gale. 12 x 440 mm, kairės pusės."]
["2.27.","Ø 4,5 - 5,5 mm sraigtai, pilnu sriegiu, pagaminti iš titano lydinio. Sraigto galvutėje yra vidinis sriegis, skirtas sraigto prisukimui prie atsuktuvo. ",670,"vnt.",32.24,{"$f":"IF(ISBLANK(E207),\"\", PRODUCT(C207,E207))","v":21600.800000000003},"33111025 - 33111090, katalogas 1, p. 160; 33112025 - 33112092, katalogas 1, p. 160, Changzhou Kanghui Medical Innovation Co., Ltd. a Medtronic company"]
["2.27.1.","Nuo 25 mm iki 90 mm, ne mažiau 13 ilgių",null,null,null,null,null,"Ø 4,5 ir 5,0 mm sraigtai, pilnu sriegiu, pagaminti iš titano lydinio. Sraigto galvutėje yra vidinis sriegis, skirtas sraigto prisukimui prie atsuktuvo. Nuo 25 mm iki 90 mm, 14 ilgių."]
["2.27.2.","Perkančioji organizacija prašo 2 dalies 2.27 objekto pavyzdžio - 1 vnt pasirinktinai",null,null,null,null,null,"Ø 4,5 ir 5,0 mm sraigtai, pilnu sriegiu, pagaminti iš titano lydinio. Sraigto galvutėje yra vidinis sriegis, skirtas sraigto prisukimui prie atsuktuvo. 4.5 x 35 mm; 5 x 40 mm."]
["2.28.","Ø 6,3 - 7,5 mm rekonstrukciniai sraigtai, daliniu sriegiu, pagaminti iš titano lydinio.",80,"vnt.",42.44,{"$f":"IF(ISBLANK(E210),\"\", PRODUCT(C210,E210))","v":3395.2},"33113065 - 33113097, katalogas 1, p. 160, Changzhou Kanghui Medical Innovation Co., Ltd. a Medtronic company"]
["2.28.1.","Nuo 65 mm iki 120 mm kas 5 mm",null,null,null,null,null,"Ø 6,3 mm rekonstrukciniai sraigtai, daliniu sriegiu, pagaminti iš titano lydinio. Nuo 65 mm iki 125 mm kas 5 mm."]
["2.28.2.","Perkančioji organizacija prašo 2 dalies 2.28 objekto pavyzdžio - 1 vnt pasirinktinai",null,null,null,null,null,"Ø 6,3 mm rekonstrukciniai sraigtai, daliniu sriegiu, pagaminti iš titano lydinio. 6.3 x 100 mm."]
["2.29.","Šlaunikaulio vinies proksimalinio galo aklė, pagaminta iš titano lydinio.  Ne mažiau 4 ilgių.",80,"vnt.",23.52,{"$f":"IF(ISBLANK(E213),\"\", PRODUCT(C213,E213))","v":1881.6},"33110000 - 33110015, katalogas 1, p. 160, Changzhou Kanghui Medical Innovation Co., Ltd. a Medtronic company"]
["2.29.1.","Šlaunikaulio vinies proksimalinio galo aklė, pagaminta iš titano lydinio.  Ne mažiau 4 ilgių.",null,null,null,null,null,"Šlaunikaulio vinies proksimalinio galo aklė, pagaminta iš titano lydinio. 4 ilgių."]
["2.30.","Intramedulinės kaniuliuotos blauzdikaulio vinys, pagamintos iš titano lydinio. ",140,"vnt.",279.24,{"$f":"IF(ISBLANK(E215),\"\", PRODUCT(C215,E215))","v":39093.599999999999},"33140026 - 33143042, katalogas 1, p. 161, Changzhou Kanghui Medical Innovation Co., Ltd. a Medtronic company"]
["2.30.1.","Vinių skersmenys 8-8.5, 9-9.5, 10-10.5, 11-11.5 mm; Vinių ilgiai 260 – 420 mm, ne mažiau 8 skirtingų ilgių kiekvieno skersmens vinių;",null,null,null,null,null,"Intramedulinės kaniuliuotos blauzdikaulio vinys, pagamintos iš titano lydinio. Vinių skersmenys 8.3, 9, 10, 11.5 mm, Vinių ilgiai 260 – 420 mm kas 20 mm, 9 ilgiai."]
["2.30.2.","Perkančioji organizacija prašo 2 dalies 2.30 objekto pavyzdžio - 1 vnt pasirinktinai",null,null,null,null,null,"Intramedulinės kaniuliuotos blauzdikaulio vinys, pagamintos iš titano lydinio. 10 x 380 mm."]
["2.31.","Ø 4,0-4,5 mm sraigtai, pagaminti iš titano lydinio. Sraigto galvutėje yra vidinis sriegis, skirtas sraigto prisukimui prie atsuktuvo.",240,"vnt.",32.24,{"$f":"IF(ISBLANK(E218),\"\", PRODUCT(C218,E218))","v":7737.6},"33111025 - 33111090, katalogas 1, p. 160; Changzhou Kanghui Medical Innovation Co., Ltd. a Medtronic company"]
["2.31.1.","Nuo 25 mm iki 90 mm, ne mažiau 14 ilgių",null,null,null,null,null,"Ø 4,5 mm sraigtai, pagaminti iš titano lydinio. Sraigto galvutėje yra vidinis sriegis, skirtas sraigto prisukimui prie atsuktuvo. Nuo 25 mm iki 90 mm, 14 ilgių."]
["2.31.2.","Perkančioji organizacija prašo 2 dalies 2.31 objekto pavyzdžio - 1 vnt pasirinktinai",null,null,null,null,null,"Ø 4,5 mm sraigtai, pagaminti iš titano lydinio. Sraigto galvutėje yra vidinis sriegis, skirtas sraigto prisukimui prie atsuktuvo. 4.5 x 30 mm."]
["2.32.","Ø 4,6-5,0 mm sraigtai, pagaminti iš titano lydinio. Sraigto galvutėje yra vidinis sriegis, skirtas sraigto prisukimui prie atsuktuvo.",350,"vnt.",32.24,{"$f":"IF(ISBLANK(E221),\"\", PRODUCT(C221,E221))","v":11284},"33112025 - 33112092, katalogas 1, p. 160, Changzhou Kanghui Medical Innovation Co., Ltd. a Medtronic company"]
["2.32.1.","Nuo 25 mm iki 90 mm, ne mažiau 14 ilgių",null,null,null,null,null,"Ø 5,0 mm sraigtai, pagaminti iš titano lydinio. Sraigto galvutėje yra vidinis sriegis, skirtas sraigto prisukimui prie atsuktuvo. Nuo 25 mm iki 90 mm, 14 ilgių."]
["2.32.2.","Perkančioji organizacija prašo 2 dalies 2.32 objekto pavyzdžio - 1 vnt pasirinktinai",null,null,null,null,null,"Ø 5,0 mm sraigtai, pagaminti iš titano lydinio. Sraigto galvutėje yra vidinis sriegis, skirtas sraigto prisukimui prie atsuktuvo. 5.0 x 35 mm."]
["2.33.","Blauzdikaulio vinies proksimalinio galo aklė, pagaminta iš titano lydinio. Ne mažiau 4 ilgių.",70,"vnt.",23.52,{"$f":"IF(ISBLANK(E224),\"\", PRODUCT(C224,E224))","v":1646.3999999999999},"33110000 - 33144015, katalogas 1, p. 162, Changzhou Kanghui Medical Innovation Co., Ltd. a Medtronic company"]
["2.33.1.","Blauzdikaulio vinies proksimalinio galo aklė, pagaminta iš titano lydinio. Ne mažiau 4 ilgių.",null,null,null,null,null,"Blauzdikaulio vinies proksimalinio galo aklė, pagaminta iš titano lydinio.  4 ilgių."]
["2.34.","Kaniuliuotos titaninės proksimalinio šlaunikaulio vinys.  Proksimaliniame vinies gale yra 1 kiaurymė rakinančiam sraigtui, kurio Ø 10,5 mm.  Distaliniame vinies gale yra 2 kiaurymės skersinio rakinimo sraigtams, kurių Ø 4,8 - 5,0 mm.",80,"vnt.",199.86,{"$f":"IF(ISBLANK(E226),\"\", PRODUCT(C226,E226))","v":15988.800000000001},"33120018, katalogas 1, p. 162, Changzhou Kanghui Medical Innovation Co., Ltd. a Medtronic company"]
["2.34.1.","11 mm x 180 - 200 mm",null,null,null,null,null,"Kaniuliuotos titaninės proksimalinio šlaunikaulio vinys. Proksimaliniame vinies gale yra 1 kiaurymė rakinančiam sraigtui, kurio Ø 10,5 mm. Distaliniame vinies gale yra 2 kiaurymės skersinio rakinimo sraigtams, kurių Ø 5,0 mm. 11 mm x 180 mm."]
["2.34.2.","Perkančioji organizacija prašo 2 dalies 2.34 objekto pavyzdžio - 1 vnt pasirinktinai",null,null,null,null,null,"Kaniuliuotos titaninės proksimalinio šlaunikaulio vinys. Proksimaliniame vinies gale yra 1 kiaurymė rakinančiam sraigtui, kurio Ø 10,5 mm. Distaliniame vinies gale yra 2 kiaurymės skersinio rakinimo sraigtams, kurių Ø 5,0 mm. 11 mm x 180 mm."]
["2.35.","Kaniuliuotos titaninės proksimalinio šlaunikaulio vinys.  Proksimaliniame vinies gale yra 1 kiaurymė rakinančiam sraigtui, kurio Ø 10,5 mm.  Distaliniame vinies gale yra 2 kiaurymės skersinio rakinimo sraigtams, kurių Ø 4,8 - 5,0 mm.",70,"vnt.",211.62,{"$f":"IF(ISBLANK(E229),\"\", PRODUCT(C229,E229))","v":14813.4},"33120024, katalogas 1, p. 162, Changzhou Kanghui Medical Innovation Co., Ltd. a Medtronic company"]
["2.35.1.","11 mm x 220 - 240 mm",null,null,null,null,null,"Kaniuliuotos titaninės proksimalinio šlaunikaulio vinys. Proksimaliniame vinies gale yra 1 kiaurymė rakinančiam sraigtui, kurio Ø 10,5 mm. Distaliniame vinies gale yra 2 kiaurymės skersinio rakinimo sraigtams, kurių Ø 5,0 mm. 11 mm x 240 mm."]
["2.35.2.","Perkančioji organizacija prašo 2 dalies 2.35 objekto pavyzdžio - 1 vnt pasirinktinai",null,null,null,null,null,"Kaniuliuotos titaninės proksimalinio šlaunikaulio vinys. Proksimaliniame vinies gale yra 1 kiaurymė rakinančiam sraigtui, kurio Ø 10,5 mm. Distaliniame vinies gale yra 2 kiaurymės skersinio rakinimo sraigtams, kurių Ø 5,0 mm. 11 mm x 240 mm."]
["2.36.","Ø 10,5 mm kaniuliuoti sraigtai, pagaminti iš titano lydinio. ",150,"vnt.",89.68,{"$f":"IF(ISBLANK(E232),\"\", PRODUCT(C232,E232))","v":13452.000000000002},"33123080 - 33123096, katalogas 1, p. 162, Changzhou Kanghui Medical Innovation Co., Ltd. a Medtronic company"]
["2.36.1.","Nuo 80 mm iki 120 mm kas 5 mm",null,null,null,null,null,"Ø 10,5 mm kaniuliuoti sraigtai, pagaminti iš titano lydinio. Nuo 80 mm iki 120 mm kas 5 mm."]
["2.36.2.","Perkančioji organizacija prašo 2 dalies 2.36 objekto pavyzdžio - 1 vnt pasirinktinai",null,null,null,null,null,"Ø 10,5 mm kaniuliuoti sraigtai, pagaminti iš titano lydinio. 10.5 mm x 95 mm."]
["2.37.","Ø 4,8 - 5,0 mm skersinio tvirtinimo sraigtai, pagaminti iš titano lydinio. Sraigto galvutėje yra vidinis sriegis, skirtas sraigto prisukimui prie atsuktuvo",430,"vnt.",32.24,{"$f":"IF(ISBLANK(E235),\"\", PRODUCT(C235,E235))","v":13863.2},"33112025 - 33112094, katalogas 1, p. 160, Changzhou Kanghui Medical Innovation Co., Ltd. a Medtronic company"]
["2.37.1.","Nuo 25 mm iki 100 mm, ne mažiau 16 ilgių",null,null,null,null,null,"Ø 5,0 mm skersinio tvirtinimo sraigtai, pagaminti iš titano lydinio. Sraigto galvutėje yra vidinis sriegis, skirtas sraigto prisukimui prie atsuktuvo. Nuo 25 mm iki 100 mm, 16 ilgių. "]
["2.38.","Proksimalinio galo aklė, pagaminta iš titano lydinio. Ne mažiau 2 ilgių.",20,"vnt.",23.52,{"$f":"IF(ISBLANK(E237),\"\", PRODUCT(C237,E237))","v":470.4},"33121000 - 33122010, katalogas 1, p. 162, Changzhou Kanghui Medical Innovation Co., Ltd. a Medtronic company"]
["2.38.1.","Proksimalinio galo aklė, pagaminta iš titano lydinio. Ne mažiau 2 ilgių.",null,null,null,null,null,"Proksimalinio galo aklė, pagaminta iš titano lydinio. 3 ilgių."]
["2.39.","Kaniuliuotos titaninės PFNA vinys. Proksimaliniame vinies gale yra 1 kiaurymė rakinančiam sraigtui, kurio Ø 10,3-10,5 mm ir jis įvedamas 130° kampu.  Distaliniame vinies gale yra 1 kiaurymė skersinio tvirtinimo sraigtui, kurio Ø 4,9-5,0 mm.",1,"vnt.",217.52,{"$f":"IF(ISBLANK(E239),\"\", PRODUCT(C239,E239))","v":217.52},"32805017, katalogas 1, p. 174, Changzhou Kanghui Medical Innovation Co., Ltd. a Medtronic company"]
["2.39.1.","9,0 - 9,5 mm x 170 mm",null,null,null,null,null,"Kaniuliuotos titaninės PFNA vinys. Proksimaliniame vinies gale yra 1 kiaurymė rakinančiam sraigtui, kurio Ø 10,3 mm ir jis įvedamas 130° kampu.  Distaliniame vinies gale yra 1 kiaurymė skersinio tvirtinimo sraigtui, kurio Ø 5,0 mm. 9,3 mm x 170 mm."]
["2.40.","Kaniuliuotos titaninės PFNA vinys. Proksimaliniame vinies gale yra 1 kiaurymė rakinančiam sraigtui, kurio Ø 10,3-10,5 mm ir jis įvedamas 130° kampu.  Distaliniame vinies gale yra 1 kiaurymė skersinio tvirtinimo sraigtui, kurio Ø 4,9-5,0 mm.",2,"vnt.",217.52,{"$f":"IF(ISBLANK(E241),\"\", PRODUCT(C241,E241))","v":435.04},"32805020, katalogas 1, p. 174, Changzhou Kanghui Medical Innovation Co., Ltd. a Medtronic company"]
["2.40.1.","9,0 - 9,5 mm x 200 mm",null,null,null,null,null,"Kaniuliuotos titaninės PFNA vinys. Proksimaliniame vinies gale yra 1 kiaurymė rakinančiam sraigtui, kurio Ø 10,3 mm ir jis įvedamas 130° kampu.  Distaliniame vinies gale yra 1 kiaurymė skersinio tvirtinimo sraigtui, kurio Ø 5,0 mm. 9,3 mm x 200 mm."]
["2.41.","Kaniuliuotos titaninės PFNA vinys. Proksimaliniame vinies gale yra 1 kiaurymė rakinančiam sraigtui, kurio Ø 10,3-10,5 mm ir jis įvedamas 130° kampu.  Distaliniame vinies gale yra 1 kiaurymė skersinio tvirtinimo sraigtui, kurio Ø 4,9-5,0 mm.",3,"vnt.",217.52,{"$f":"IF(ISBLANK(E243),\"\", PRODUCT(C243,E243))","v":652.56000000000006},"32803017, katalogas 1, p. 174, Changzhou Kanghui Medical Innovation Co., Ltd. a Medtronic company"]
["2.41.1.","10 - 10,5 mm x 170 mm",null,null,null,null,null,"Kaniuliuotos titaninės PFNA vinys. Proksimaliniame vinies gale yra 1 kiaurymė rakinančiam sraigtui, kurio Ø 10,3 mm ir jis įvedamas 130° kampu.  Distaliniame vinies gale yra 1 kiaurymė skersinio tvirtinimo sraigtui, kurio Ø 5,0 mm. 10 mm x 170 mm."]
["2.42.","Kaniuliuotos titaninės PFNA vinys. Proksimaliniame vinies gale yra 1 kiaurymė rakinančiam sraigtui, kurio Ø 10,3-10,5 mm ir jis įvedamas 130° kampu.  Distaliniame vinies gale yra 1 kiaurymė skersinio tvirtinimo sraigtui, kurio Ø 4,9-5,0 mm.",5,"vnt.",217.52,{"$f":"IF(ISBLANK(E245),\"\", PRODUCT(C245,E245))","v":1087.6000000000001},"32803020, katalogas 1, p. 174, Changzhou Kanghui Medical Innovation Co., Ltd. a Medtronic company"]
["2.42.1.","10 - 10,5 mm x 200 mm",null,null,null,null,null,"Kaniuliuotos titaninės PFNA vinys. Proksimaliniame vinies gale yra 1 kiaurymė rakinančiam sraigtui, kurio Ø 10,3 mm ir jis įvedamas 130° kampu.  Distaliniame vinies gale yra 1 kiaurymė skersinio tvirtinimo sraigtui, kurio Ø 5,0 mm. 10 mm x 200 mm."]
["2.43.","Kaniuliuotos titaninės PFNA vinys. Proksimaliniame vinies gale yra 1 kiaurymė rakinančiam sraigtui, kurio Ø 10,3-10,5 mm ir jis įvedamas 130° kampu.  Distaliniame vinies gale yra 1 kiaurymė skersinio tvirtinimo sraigtui, kurio Ø 4,9-5,0 mm.",5,"vnt.",217.52,{"$f":"IF(ISBLANK(E247),\"\", PRODUCT(C247,E247))","v":1087.6000000000001},"32803024, katalogas 1, p. 174, Changzhou Kanghui Medical Innovation Co., Ltd. a Medtronic company"]
["2.43.1.","10 - 10,5 mm x 240 mm",null,null,null,null,null,"Kaniuliuotos titaninės PFNA vinys. Proksimaliniame vinies gale yra 1 kiaurymė rakinančiam sraigtui, kurio Ø 10,3 mm ir jis įvedamas 130° kampu.  Distaliniame vinies gale yra 1 kiaurymė skersinio tvirtinimo sraigtui, kurio Ø 5,0 mm. 10 mm x 240 mm."]
["2.44.","Kaniuliuotos titaninės PFNA vinys. Proksimaliniame vinies gale yra 1 kiaurymė rakinančiam sraigtui, kurio Ø 10,3-10,5 mm ir jis įvedamas 130° kampu.  Distaliniame vinies gale yra 1 kiaurymė skersinio tvirtinimo sraigtui, kurio Ø 4,9-5,0 mm.",3,"vnt.",237.29,{"$f":"IF(ISBLANK(E249),\"\", PRODUCT(C249,E249))","v":711.87},"32804017, katalogas 1, p. 174, Changzhou Kanghui Medical Innovation Co., Ltd. a Medtronic company"]
["2.44.1.","11 - 11,5 mm x 170 mm",null,null,null,null,null,"Kaniuliuotos titaninės PFNA vinys. Proksimaliniame vinies gale yra 1 kiaurymė rakinančiam sraigtui, kurio Ø 10,3 mm ir jis įvedamas 130° kampu.  Distaliniame vinies gale yra 1 kiaurymė skersinio tvirtinimo sraigtui, kurio Ø 5,0 mm. 11 mm x 170 mm."]
["2.45.","Kaniuliuotos titaninės PFNA vinys. Proksimaliniame vinies gale yra 1 kiaurymė rakinančiam sraigtui, kurio Ø 10,3-10,5 mm ir jis įvedamas 130° kampu.  Distaliniame vinies gale yra 1 kiaurymė skersinio tvirtinimo sraigtui, kurio Ø 4,9-5,0 mm.",15,"vnt.",237.29,{"$f":"IF(ISBLANK(E251),\"\", PRODUCT(C251,E251))","v":3559.35},"32804020, katalogas 1, p. 174, Changzhou Kanghui Medical Innovation Co., Ltd. a Medtronic company"]
["2.45.1.","11 - 11,5 mm x 200 mm",null,null,null,null,null,"Kaniuliuotos titaninės PFNA vinys. Proksimaliniame vinies gale yra 1 kiaurymė rakinančiam sraigtui, kurio Ø 10,3 mm ir jis įvedamas 130° kampu.  Distaliniame vinies gale yra 1 kiaurymė skersinio tvirtinimo sraigtui, kurio Ø 5,0 mm. 11 mm x 200 mm."]
["2.46.","Kaniuliuotos titaninės PFNA vinys. Proksimaliniame vinies gale yra 1 kiaurymė rakinančiam sraigtui, kurio Ø 10,3-10,5 mm ir jis įvedamas 130° kampu.  Distaliniame vinies gale yra 1 kiaurymė skersinio tvirtinimo sraigtui, kurio Ø 4,9-5,0 mm.",15,"vnt.",237.29,{"$f":"IF(ISBLANK(E253),\"\", PRODUCT(C253,E253))","v":3559.35},"32804024, katalogas 1, p. 174, Changzhou Kanghui Medical Innovation Co., Ltd. a Medtronic company"]
["2.46.1.","11 - 11,5 mm x 240 mm",null,null,null,null,null,"Kaniuliuotos titaninės PFNA vinys. Proksimaliniame vinies gale yra 1 kiaurymė rakinančiam sraigtui, kurio Ø 10,3 mm ir jis įvedamas 130° kampu.  Distaliniame vinies gale yra 1 kiaurymė skersinio tvirtinimo sraigtui, kurio Ø 5,0 mm. 11 mm x 240 mm."]
["2.47.","Kaniuliuotos titaninės PFNA vinys. Proksimaliniame vinies gale yra 1 kiaurymė rakinančiam sraigtui, kurio Ø 10,3-10,5 mm ir jis įvedamas 130° kampu.  Distaliniame vinies gale yra 1 kiaurymė skersinio tvirtinimo sraigtui, kurio Ø 4,9-5,0 mm.",20,"vnt.",237.29,{"$f":"IF(ISBLANK(E255),\"\", PRODUCT(C255,E255))","v":4745.8},"39591117, katalogas 1, p. 174, Changzhou Kanghui Medical Innovation Co., Ltd. a Medtronic company"]
["2.47.1.","12 - 12,5 mm x 170 mm",null,null,null,null,null,"Kaniuliuotos titaninės PFNA vinys. Proksimaliniame vinies gale yra 1 kiaurymė rakinančiam sraigtui, kurio Ø 10,3 mm ir jis įvedamas 130° kampu.  Distaliniame vinies gale yra 1 kiaurymė skersinio tvirtinimo sraigtui, kurio Ø 5,0 mm. 12 mm x 170 mm."]
["2.47.2.","Perkančioji organizacija prašo 2 dalies 2.47 objekto pavyzdžio - 1 vnt ",null,null,null,null,null,"Kaniuliuotos titaninės PFNA vinys. Proksimaliniame vinies gale yra 1 kiaurymė rakinančiam sraigtui, kurio Ø 10,3 mm ir jis įvedamas 130° kampu.  Distaliniame vinies gale yra 1 kiaurymė skersinio tvirtinimo sraigtui, kurio Ø 5,0 mm. 12 mm x 170 mm."]
["2.48.","Kaniuliuotos titaninės PFNA vinys. Proksimaliniame vinies gale yra 1 kiaurymė rakinančiam sraigtui, kurio Ø 10,3-10,5 mm ir jis įvedamas 130° kampu.  Distaliniame vinies gale yra 1 kiaurymė skersinio tvirtinimo sraigtui, kurio Ø 4,9-5,0 mm.",30,"vnt.",237.29,{"$f":"IF(ISBLANK(E258),\"\", PRODUCT(C258,E258))","v":7118.7},"39591120, katalogas 1, p. 174, Changzhou Kanghui Medical Innovation Co., Ltd. a Medtronic company"]
["2.48.1.","12 - 12,5 mm x 200 mm",null,null,null,null,null,"Kaniuliuotos titaninės PFNA vinys. Proksimaliniame vinies gale yra 1 kiaurymė rakinančiam sraigtui, kurio Ø 10,3 mm ir jis įvedamas 130° kampu.  Distaliniame vinies gale yra 1 kiaurymė skersinio tvirtinimo sraigtui, kurio Ø 5,0 mm. 12 mm x 200 mm."]
["2.49.","Kaniuliuotos titaninės PFNA vinys. Proksimaliniame vinies gale yra 1 kiaurymė rakinančiam sraigtui, kurio Ø 10,3-10,5 mm ir jis įvedamas 130° kampu.  Distaliniame vinies gale yra 1 kiaurymė skersinio tvirtinimo sraigtui, kurio Ø 4,9-5,0 mm.",25,"vnt.",237.29,{"$f":"IF(ISBLANK(E260),\"\", PRODUCT(C260,E260))","v":5932.25},"39591124, katalogas 1, p. 174, Changzhou Kanghui Medical Innovation Co., Ltd. a Medtronic company"]
["2.49.1.","12 - 12,5 mm x 240 mm",null,null,null,null,null,"Kaniuliuotos titaninės PFNA vinys. Proksimaliniame vinies gale yra 1 kiaurymė rakinančiam sraigtui, kurio Ø 10,3 mm ir jis įvedamas 130° kampu.  Distaliniame vinies gale yra 1 kiaurymė skersinio tvirtinimo sraigtui, kurio Ø 5,0 mm. 12 mm x 240 mm."]
["2.50.","Kaniuliuotos titaninės PFNA vinys. Proksimaliniame vinies gale yra 1 kiaurymė rakinančiam sraigtui, kurio Ø 10,3-10,5 mm ir jis įvedamas 130° kampu.  Distaliniame vinies gale yra 1 kiaurymė skersinio tvirtinimo sraigtui, kurio Ø 4,9-5,0 mm.",50,"vnt.",342,{"$f":"IF(ISBLANK(E262),\"\", PRODUCT(C262,E262))","v":17100},"32820132 - 32823244, katalogas 1, p. 174, Changzhou Kanghui Medical Innovation Co., Ltd. a Medtronic company"]
["2.50.1.","Vinių skersmenys 9-10, 10,5-11, 11,5-12 mm; Vinių ilgiai 320-340 mm, 360-380 mm, 400-440 mm; Dešinės pusės, Kairės pusės.",null,null,null,null,null,"Kaniuliuotos titaninės PFNA vinys. Proksimaliniame vinies gale yra 1 kiaurymė rakinančiam sraigtui, kurio Ø 10,3 mm ir jis įvedamas 130° kampu.  Distaliniame vinies gale yra 1 kiaurymė skersinio tvirtinimo sraigtui, kurio Ø 5,0 mm. Vinių skersmenys 9.5, 10, 11, 12 mm. Vinių ilgiai 320 – 440 mm kas 20 mm. Dešinės pusės, kairės pusės."]
["2.50.2.","Perkančioji organizacija prašo 2 dalies 2.50 objekto11,5 - 12 x 360-380 mm, dešinės pusės pavyzdžio - 1 vnt ",null,null,null,null,null,"Kaniuliuotos titaninės PFNA vinys. Proksimaliniame vinies gale yra 1 kiaurymė rakinančiam sraigtui, kurio Ø 10,3 mm ir jis įvedamas 130° kampu.  12 mm x 380 mm, dešinės pusės."]
["2.51.","Kaniuliuoti Ø 10,3-10,5 mm sraigtai, pagaminti iš titano lydinio. Naudojami PFNA vinių proksimaliniame gale.",3,"vnt.",198.34,{"$f":"IF(ISBLANK(E265),\"\", PRODUCT(C265,E265))","v":595.02},"32801075, katalogas 1, p. 175, Changzhou Kanghui Medical Innovation Co., Ltd. a Medtronic company"]
["2.51.1.","75 mm",null,null,null,null,null,"Kaniuliuoti Ø 10,3 mm sraigtai, pagaminti iš titano lydinio. Naudojami PFNA vinių proksimaliniame gale. 75 mm "]
["2.52.","Kaniuliuoti Ø 10,3-10,5 mm sraigtai, pagaminti iš titano lydinio. Naudojami PFNA vinių proksimaliniame gale.",3,"vnt.",198.34,{"$f":"IF(ISBLANK(E267),\"\", PRODUCT(C267,E267))","v":595.02},"32801080, katalogas 1, p. 175, Changzhou Kanghui Medical Innovation Co., Ltd. a Medtronic company"]
["2.52.1.","80 mm",null,null,null,null,null,"Kaniuliuoti Ø 10,3 mm sraigtai, pagaminti iš titano lydinio. Naudojami PFNA vinių proksimaliniame gale. 80 mm"]
["2.53.","Kaniuliuoti Ø 10,3-10,5 mm sraigtai, pagaminti iš titano lydinio. Naudojami PFNA vinių proksimaliniame gale.",10,"vnt.",198.34,{"$f":"IF(ISBLANK(E269),\"\", PRODUCT(C269,E269))","v":1983.4},"32801085, katalogas 1, p. 175, Changzhou Kanghui Medical Innovation Co., Ltd. a Medtronic company"]
["2.53.1.","85 mm",null,null,null,null,null,"Kaniuliuoti Ø 10,3 mm sraigtai, pagaminti iš titano lydinio. Naudojami PFNA vinių proksimaliniame gale. 85 mm"]
["2.54.","Kaniuliuoti Ø 10,3-10,5 mm sraigtai, pagaminti iš titano lydinio. Naudojami PFNA vinių proksimaliniame gale.",15,"vnt.",198.34,{"$f":"IF(ISBLANK(E271),\"\", PRODUCT(C271,E271))","v":2975.1},"32801090, katalogas 1, p. 175, Changzhou Kanghui Medical Innovation Co., Ltd. a Medtronic company"]
["2.54.1.","90 mm",null,null,null,null,null,"Kaniuliuoti Ø 10,3 mm sraigtai, pagaminti iš titano lydinio. Naudojami PFNA vinių proksimaliniame gale. 90 mm"]
["2.55.","Kaniuliuoti Ø 10,3-10,5 mm sraigtai, pagaminti iš titano lydinio. Naudojami PFNA vinių proksimaliniame gale.",25,"vnt.",198.34,{"$f":"IF(ISBLANK(E273),\"\", PRODUCT(C273,E273))","v":4958.5},"32801091, katalogas 1, p. 175, Changzhou Kanghui Medical Innovation Co., Ltd. a Medtronic company"]
["2.55.1.","95 mm",null,null,null,null,null,"Kaniuliuoti Ø 10,3 mm sraigtai, pagaminti iš titano lydinio. Naudojami PFNA vinių proksimaliniame gale. 95 mm"]
["2.56.","Kaniuliuoti Ø 10,3-10,5 mm sraigtai, pagaminti iš titano lydinio. Naudojami PFNA vinių proksimaliniame gale.",50,"vnt.",198.34,{"$f":"IF(ISBLANK(E275),\"\", PRODUCT(C275,E275))","v":9917},"32801092, katalogas 1, p. 175, Changzhou Kanghui Medical Innovation Co., Ltd. a Medtronic company"]
["2.56.1.","100 mm",null,null,null,null,null,"Kaniuliuoti Ø 10,3 mm sraigtai, pagaminti iš titano lydinio. Naudojami PFNA vinių proksimaliniame gale. 100 mm"]
["2.56.2.","Perkančioji organizacija prašo 2 dalies 2.56 objekto pavyzdžio - 1 vnt ",null,null,null,null,null,"Kaniuliuoti Ø 10,3 mm sraigtai, pagaminti iš titano lydinio. Naudojami PFNA vinių proksimaliniame gale. 100 mm"]
["2.57.","Kaniuliuoti Ø 10,3-10,5 mm sraigtai, pagaminti iš titano lydinio. Naudojami PFNA vinių proksimaliniame gale.",30,"vnt.",217.71,{"$f":"IF(ISBLANK(E278),\"\", PRODUCT(C278,E278))","v":6531.3},"32801093, katalogas 1, p. 175, Changzhou Kanghui Medical Innovation Co., Ltd. a Medtronic company"]
["2.57.1.","105 mm",null,null,null,null,null,"Kaniuliuoti Ø 10,3 mm sraigtai, pagaminti iš titano lydinio. Naudojami PFNA vinių proksimaliniame gale. 105 mm"]
["2.58.","Kaniuliuoti Ø 10,3-10,5 mm sraigtai, pagaminti iš titano lydinio. Naudojami PFNA vinių proksimaliniame gale.",20,"vnt.",217.71,{"$f":"IF(ISBLANK(E280),\"\", PRODUCT(C280,E280))","v":4354.2},"32801094, katalogas 1, p. 175, Changzhou Kanghui Medical Innovation Co., Ltd. a Medtronic company"]
["2.58.1.","110 mm",null,null,null,null,null,"Kaniuliuoti Ø 10,3 mm sraigtai, pagaminti iš titano lydinio. Naudojami PFNA vinių proksimaliniame gale. 110 mm"]
["2.59.","Kaniuliuoti Ø 10,3-10,5 mm sraigtai, pagaminti iš titano lydinio. Naudojami PFNA vinių proksimaliniame gale.",5,"vnt.",217.71,{"$f":"IF(ISBLANK(E282),\"\", PRODUCT(C282,E282))","v":1088.55},"32801095, katalogas 1, p. 175, Changzhou Kanghui Medical Innovation Co., Ltd. a Medtronic company"]
["2.59.1.","115 mm",null,null,null,null,null,"Kaniuliuoti Ø 10,3 mm sraigtai, pagaminti iš titano lydinio. Naudojami PFNA vinių proksimaliniame gale. 115 mm"]
["2.60.","Kaniuliuoti Ø 10,3-10,5 mm sraigtai, pagaminti iš titano lydinio. Naudojami PFNA vinių proksimaliniame gale.",3,"vnt.",217.71,{"$f":"IF(ISBLANK(E284),\"\", PRODUCT(C284,E284))","v":653.13},"32801096, katalogas 1, p. 175, Changzhou Kanghui Medical Innovation Co., Ltd. a Medtronic company"]
["2.60.1.","120 mm",null,null,null,null,null,"Kaniuliuoti Ø 10,3 mm sraigtai, pagaminti iš titano lydinio. Naudojami PFNA vinių proksimaliniame gale. 120 mm"]
["2.61.","Ø 4,9 - 5,0 mm skersinio tvirtinimo sraigtai, pilnu sriegiu, pagaminti iš titano lydinio. Sraigto galvutėje yra vidinis sriegis, skirtas sraigto prisukimui prie atsuktuvo. Naudojami PFNA vinių distaliniame gale.",430,"vnt.",32.24,{"$f":"IF(ISBLANK(E286),\"\", PRODUCT(C286,E286))","v":13863.2},"33112025 - 33112092, katalogas 1, p. 160, Changzhou Kanghui Medical Innovation Co., Ltd. a Medtronic company"]
["2.61.1.","Nuo 25 mm iki 100 mm, ne mažiau 16 ilgių",null,null,null,null,null,"Ø 5,0 mm skersinio tvirtinimo sraigtai, pilnu sriegiu, pagaminti iš titano lydinio. Sraigto galvutėje yra vidinis sriegis, skirtas sraigto prisukimui prie atsuktuvo. Naudojami PFNA vinių distaliniame gale. Nuo 25 mm iki 100 mm, 16 ilgių."]
["2.61.2.","Perkančioji organizacija prašo 2 dalies 2.61 objekto pavyzdžio - 1 vnt pasirinktinai",null,null,null,null,null,"Ø 5,0 mm skersinio tvirtinimo sraigtai, pilnu sriegiu, pagaminti iš titano lydinio. Sraigto galvutėje yra vidinis sriegis, skirtas sraigto prisukimui prie atsuktuvo. Naudojami PFNA vinių distaliniame gale. 5 mm x 45 mm."]
["2.62.","PFNA vinių proksimalinio galo aklė, pagaminta iš titano lydinio.",20,"vnt.",22.24,{"$f":"IF(ISBLANK(E289),\"\", PRODUCT(C289,E289))","v":444.79999999999995},"32806000, katalogas 1, p. 175, Changzhou Kanghui Medical Innovation Co., Ltd. a Medtronic company"]
["2.62.1.","PFNA vinių proksimalinio galo aklė, pagaminta iš titano lydinio.",null,null,null,null,null,"PFNA vinių proksimalinio galo aklė, pagaminta iš titano lydinio."]
["2.63.","Instrumentai, skirti darbui su intramedulinėmis šlaunikaulio ir blauzdikaulio vinimis. Privaloma pateikti instrumentus panaudos būdu.  Privaloma pateikti 2 rinkinius. Vieno rinkinio sudėtis:",2,"rinkinys",0,{"$f":"IF(ISBLANK(E291),\"\", PRODUCT(C291,E291))","v":0},"899460, katalogas 1, p. 163, Changzhou Kanghui Medical Innovation Co., Ltd. a Medtronic company"]
["2.63.1.","Vinių instrumentų sterilizavimo konteineris - 2 vnt.",null,null,null,null,null,"Vinių instrumentų sterilizavimo konteineris"]
["2.63.2.","Yla su rankena - 1 vnt.",null,null,null,null,null,"Yla su rankena"]
["2.63.3.","L formos raktas - 1 vnt",null,null,null,null,null,"L formos raktas"]
["2.63.4.","T-formos rankena su greito pajungimo jungtimi - 1 vnt.",null,null,null,null,null,"T-formos rankena su greito pajungimo jungtimi"]
["2.63.5.","T formos kaniuliuotas kanalo instrumentas - 1 vnt.",null,null,null,null,null,"T formos kaniuliuotas kanalo instrumentas"]
["2.63.6.","Nukreipimo viela su alyvuogės formos galu, 100 cm ilgio - 1 vnt",null,null,null,null,null,"Nukreipimo viela su alyvuogės formos galu, 100 cm ilgio"]
["2.63.7.","Nukreipimo vielos rankena - 1 vnt",null,null,null,null,null,"Nukreipimo vielos rankena"]
["2.63.8.","Ø 12.5 mm lankstus kaniuliuotas grąžtas - 1 vn",null,null,null,null,null,"Ø 12.5 mm lankstus kaniuliuotas grąžtas"]
["2.63.9.","Ø 8.5 mm kaniuliuota grąžto galvutė - 1 vnt",null,null,null,null,null,"Ø 8.5 mm kaniuliuota grąžto galvutė"]
["2.63.10.","Ø 9.0 mm kaniuliuota grąžto galvutė - 1 vnt",null,null,null,null,null,"Ø 9.0 mm kaniuliuota grąžto galvutė"]
["2.63.11.","Ø 9.5 mm kaniuliuota grąžto galvutė - 1 vnt",null,null,null,null,null,"Ø 9.5 mm kaniuliuota grąžto galvutė"]
["2.63.12.","Ø 10.0 mm kaniuliuota grąžto galvutė - 1 vnt",null,null,null,null,null,"Ø 10.0 mm kaniuliuota grąžto galvutė"]
["2.63.13.","Ø 10.5 mm kaniuliuota grąžto galvutė - 1 vnt",null,null,null,null,null,"Ø 10.5 mm kaniuliuota grąžto galvutė"]
["2.63.14.","Ø 11.0 mm kaniuliuota grąžto galvutė - 1 vnt",null,null,null,null,null,"Ø 11.0 mm kaniuliuota grąžto galvutė"]
["2.63.15.","Ø 11.5 mm kaniuliuota grąžto galvutė - 1 vnt",null,null,null,null,null,"Ø 11.5 mm kaniuliuota grąžto galvutė"]
["2.63.16.","Ø 12.0 mm kaniuliuota grąžto galvutė - 1 vnt",null,null,null,null,null,"Ø 12.0 mm kaniuliuota grąžto galvutė"]
["2.63.17.","Ø 12.5 mm kaniuliuota grąžto galvutė - 1 vnt",null,null,null,null,null,"Ø 12.5 mm kaniuliuota grąžto galvutė"]
["2.63.18.","Ø 13.0 mm kaniuliuota grąžto galvutė - 1 vnt",null,null,null,null,null,"Ø 13.0 mm kaniuliuota grąžto galvutė"]
["2.63.19.","Ø 13.5 mm kaniuliuota grąžto galvutė - 1 vnt",null,null,null,null,null,"Ø 13.5 mm kaniuliuota grąžto galvutė"]
["2.63.20.","Sraigtų ilgio matuoklis - 1 vnt",null,null,null,null,null,"Sraigtų ilgio matuoklis"]
["2.63.21.","Ø 4.5 mm sriegiklis - 1 vnt",null,null,null,null,null,"Ø 4.5 mm sriegiklis"]
["2.63.22.","Ø 5.0 mm sriegiklis - 1 vnt",null,null,null,null,null,"Ø 5.0 mm sriegiklis"]
["2.63.23.","T- formos kaniuliuotas atsuktuvas su sraigtų laikikliu, 255 mm ilgio - 1 vnt",null,null,null,null,null,"T- formos kaniuliuotas atsuktuvas su sraigtų laikikliu, 255 mm ilgio"]
["2.63.24.","T- formos kaniuliuotas atsuktuvas su sraigtų laikikliu, 350 mm ilgio - 1 vnt",null,null,null,null,null,"T- formos kaniuliuotas atsuktuvas su sraigtų laikikliu, 350 mm ilgio"]
["2.63.25.","Grąžto apsauga 2.5 - 1 vnt",null,null,null,null,null,"Grąžto apsauga 2.5"]
["2.63.26.","Ø 2.5 mm viela - 3 vnt",null,null,null,null,null,"Ø 2.5 mm viela "]
["2.63.27.","Ø 2.5 mm viela su sriegiu - 3 vnt",null,null,null,null,null,"Ø 2.5 mm viela su sriegiu"]
["2.63.28.","Sraigtų ilgio matuoklis uždedamas ant vielos - 1 vnt",null,null,null,null,null,"Sraigtų ilgio matuoklis uždedamas ant vielos"]
["2.63.29.","Grąžto apsauga 6.4 - ",null,null,null,null,null,"Grąžto apsauga 6.4"]
["2.63.30.","Ø 6.4 mm grąžtas - 1 vnt",null,null,null,null,null,"Ø 6.4 mm grąžtas"]
["2.63.31.","Ø 6.4 mm gręžimo gylio ribotuvas - 1 vnt",null,null,null,null,null,"Ø 6.4 mm gręžimo gylio ribotuvas"]
["2.63.32.","Ø 6.4 mm sriegiklis - 1 vnt",null,null,null,null,null,"Ø 6.4 mm sriegiklis"]
["2.63.33.","Atsuktuvo ašis rankenos sraigtui - 1 vnt",null,null,null,null,null,"Atsuktuvo ašis rankenos sraigtui"]
["2.63.34.","Vinių ištraukėjas - 1 vnt",null,null,null,null,null,"Vinių ištraukėjas"]
["2.63.35.","Vinies įvedimo rankena - 1 vnt",null,null,null,null,null,"Vinies įvedimo rankena"]
["2.63.36.","Vinies prisukimo prie rankenos veržlė - 2 vnt",null,null,null,null,null,"Vinies prisukimo prie rankenos veržlė"]
["2.63.37.","Plaktukas su 3 veržlėmis - 1 vnt",null,null,null,null,null,"Plaktukas su 3 veržlėmis"]
["2.63.38.","Proksimalinės veržlės - 2 vnt",null,null,null,null,null,"Proksimalinės veržlės"]
["2.63.39.","Distalinės veržlės - 3 vnt",null,null,null,null,null,"Distalinės veržlės"]
["2.63.40.","Ø 5.0 mm šešiakampis L formos raktas - 1 vnt",null,null,null,null,null,"Ø 5.0 mm šešiakampis L formos raktas"]
["2.63.41.","Ø 8.0 mm apsauga, 120 mm ilgio - 1 vnt",null,null,null,null,null,"Ø 8.0 mm apsauga, 120 mm ilgio"]
["2.63.42.","Troakaras , Ø 8.1 mm, 140 mm ilgio - 1 vnt",null,null,null,null,null,"Troakaras , Ø 8.1 mm, 140 mm ilgio"]
["2.63.43.","Ø 5.2 mm apsauga su rankena - 1 vnt",null,null,null,null,null,"Ø 5.2 mm apsauga su rankena"]
["2.63.44.","Ø 5.2 mm grąžtas, 250 mm ilgio - 1 vnt",null,null,null,null,null,"Ø 5.2 mm grąžtas, 250 mm ilgio"]
["2.63.45.","Ø 5.2 mm T formos grąžtas vinies pozicijos fiksavimo instrumentui  - 1 vnt",null,null,null,null,null,"Ø 5.2 mm T formos grąžtas vinies pozicijos fiksavimo instrumentui "]
["2.63.46.","Išorinė apsauga, 155 mm ilgio - 1 vnt",null,null,null,null,null,"Išorinė apsauga, 155 mm ilgio"]
["2.63.47.","Troakaras , Ø 8.1 mm, 174 mm ilgio - 1 vnt",null,null,null,null,null,"Troakaras , Ø 8.1 mm, 174 mm ilgio"]
["2.63.48.","Ø 4.0 mm apsauga su rankena - 1 vnt",null,null,null,null,null,"Ø 4.0 mm apsauga su rankena"]
["2.63.49.","Ø 4.3 mm apsauga su rankena - 1 vnt",null,null,null,null,null,"Ø 4.3 mm apsauga su rankena"]
["2.63.50.","Ø 4.0 mm grąžtas, 300 mm ilgio - 1 vnt",null,null,null,null,null,"Ø 4.0 mm grąžtas, 300 mm ilgio"]
["2.63.51.","Ø 4.0 mm gręžimo gylio ribotuvas - 1 vnt",null,null,null,null,null,"Ø 4.0 mm gręžimo gylio ribotuvas"]
["2.63.52.","Ø 4.3 mm grąžtas, 300 mm ilgio - 1 vnt",null,null,null,null,null,"Ø 4.3 mm grąžtas, 300 mm ilgio"]
["2.63.53.","Ø 4.3 mm gręžimo gylio ribotuvas - 1 vnt",null,null,null,null,null,"Ø 4.3 mm gręžimo gylio ribotuvas"]
["2.63.54.","L formos vinies pozicijos fiksavimo instrumentas - 1 vnt",null,null,null,null,null,"L formos vinies pozicijos fiksavimo instrumentas "]
["2.63.55.","Trokaras (šlaunikaulio) - 1 vnt",null,null,null,null,null,"Trokaras (šlaunikaulio)"]
["2.63.56.","Grąžto apsauga (šlaunikaulio) - 1 vnt",null,null,null,null,null,"Grąžto apsauga (šlaunikaulio)"]
["2.63.57.","Grąžtas (šlaunikaulio) - 1 vn",null,null,null,null,null,"Grąžtas (šlaunikaulio)"]
["2.63.58.","Gręžimo gylio ribotuvas (šlaunikaulio) - 1 vnt",null,null,null,null,null,"Gręžimo gylio ribotuvas (šlaunikaulio)"]
["2.63.59.","Proksimalinis nukreipėjas (šlaunikaulio) - 1 vnt",null,null,null,null,null,"Proksimalinis nukreipėjas (šlaunikaulio)"]
["2.63.60.","Distalinis nukreipėjas (šlaunikaulio) - 1 vnt",null,null,null,null,null,"Distalinis nukreipėjas (šlaunikaulio)"]
["2.63.61.","Lenktas taikiklis (šlaunikaulio) - 1 vnt",null,null,null,null,null,"Lenktas taikiklis (šlaunikaulio)"]
["2.63.62.","Vinies pozicijos fiksatorius (šlaunikaulio) - 1 vnt",null,null,null,null,null,"Vinies pozicijos fiksatorius (šlaunikaulio)"]
["2.63.63.","Fiksavimo blokelis (Ø 9/ Ø 10) (šlaunikaulio) - 1 vnt",null,null,null,null,null,"Fiksavimo blokelis (Ø 9/ Ø 10) (šlaunikaulio)"]
["2.63.64.","Fiksavimo blokelis (Ø 11/ Ø 12) (šlaunikaulio) - 1 vnt",null,null,null,null,null,"Fiksavimo blokelis (Ø 11/ Ø 12) (šlaunikaulio)"]
["2.63.65.","Trokaras (blauzdikaulio) - 1 vnt",null,null,null,null,null,"Trokaras (blauzdikaulio)"]
["2.63.66.","Grąžto apsauga (blauzdikaulio) - 1 vnt",null,null,null,null,null,"Grąžto apsauga (blauzdikaulio)"]
["2.63.67.","Grąžtas (blauzdikaulio) - 1 vnt",null,null,null,null,null,"Grąžtas (blauzdikaulio)"]
["2.63.68.","Proksimalinis nukreipėjas, kairė (blauzdikaulio) - 1 vnt",null,null,null,null,null,"Proksimalinis nukreipėjas, kairė (blauzdikaulio)"]
["2.63.69.","Proksimalinis nukreipėjas, dešinė (blauzdikaulio) - 1 vnt",null,null,null,null,null,"Proksimalinis nukreipėjas, dešinė (blauzdikaulio)"]
["2.63.70.","Distalinis nukreipėjas (blauzdikaulio) - 1 vnt",null,null,null,null,null,"Distalinis nukreipėjas (blauzdikaulio)"]
["2.63.71.","Lenktas taikiklis (blauzdikaulio) - 1 vnt",null,null,null,null,null,"Lenktas taikiklis (blauzdikaulio)"]
["2.63.72.","Vinies pozicijos fiksatorius (blauzdikaulio) - 1 vnt",null,null,null,null,null,"Vinies pozicijos fiksatorius (blauzdikaulio)"]
["2.63.73.","Proksimalinis nukreipėjas (blauzdikaulio) - 1 vnt",null,null,null,null,null,"Proksimalinis nukreipėjas (blauzdikaulio)"]
["2.63.74.","Fiksavimo blokelis (Φ8/Φ9) (blauzdikaulio) - 1 vnt",null,null,null,null,null,"Fiksavimo blokelis (Φ8/Φ9) (blauzdikaulio)"]
["2.63.75.","Fiksavimo blokelis (Φ10/Φ11.5) (blauzdikaulio) - 1 vnt",null,null,null,null,null,"Fiksavimo blokelis (Φ10/Φ11.5) (blauzdikaulio)"]
["2.64.","Instrumentai, skirti darbui su intramedulinėmis PFNA vinimis. Privaloma pateikti 2 rinkinius. Instrumentus pateikti panaudos būdu. Vieno rinkinio sudėtis:",2,"rinkinys",0,{"$f":"IF(ISBLANK(E367),\"\", PRODUCT(C367,E367))","v":0},"269900, katalogas 1, p. 176, Changzhou Kanghui Medical Innovation Co., Ltd. a Medtronic company"]
["2.64.1.","PFNA intramedulinių vinių instrumentų sterilizavimo konteineris - 1 vnt.",null,null,null,null,null,"PFNA intramedulinių vinių instrumentų sterilizavimo konteineris"]
["2.64.2.","Sujungimo varžtas - 1 vnt.",null,null,null,null,null,"Sujungimo varžtas"]
["2.64.3.","Sujungimo detalė - 1 vnt.",null,null,null,null,null,"Sujungimo detalė"]
["2.64.4.","130° nukreipėjo varžtas - 1 vnt.",null,null,null,null,null,"130° nukreipėjo varžtas"]
["2.64.5.","Sraigto apsauga - 1 vnt.",null,null,null,null,null,"Sraigto apsauga"]
["2.64.6.","Trokaro apsauga Ø 3.2 - 1 vnt.",null,null,null,null,null,"Trokaro apsauga Ø 3.2"]
["2.64.7.","rokaras, Ø 3.2mm - 1 vnt.",null,null,null,null,null,"Trokaras, Ø 3.2mm "]
["2.64.8.","Ilgio matuoklis  Ø 3.2mm vielai - 1 vnt.",null,null,null,null,null,"Ilgio matuoklis  Ø 3.2mm vielai"]
["2.64.9.","Apsauga - 2 vnt.",null,null,null,null,null,"Apsauga"]
["2.64.10.","Grąžto apsauga Ø 4.0 - 2 vnt.",null,null,null,null,null,"Grąžto apsauga Ø 4.0"]
["2.64.11.","Trokaras, Ø 4.0mm - 1 vnt.",null,null,null,null,null,"Trokaras, Ø 4.0mm "]
["2.64.12.","Distalinių sraigtų ilgio matuoklė - 1 vnt.",null,null,null,null,null,"Distalinių sraigtų ilgio matuoklė"]
["2.64.13.","Distalinių sraigtų atsuktuvas - 1 vnt.",null,null,null,null,null,"Distalinių sraigtų atsuktuvas"]
["2.64.14.","T formos atsuktuvas - 1 vnt.",null,null,null,null,null,"T formos atsuktuvas"]
["2.64.15.","Nukreipimo viela su kabliuku - 1 vnt.",null,null,null,null,null,"Nukreipimo viela su kabliuku"]
["2.64.16.","Kaniuliuotas atsuktuvas vinies galo sraigtui - 1 vnt",null,null,null,null,null,"Kaniuliuotas atsuktuvas vinies galo sraigtui"]
["2.64.17.","Kaniuliuotas ilgintuvas - 1 vnt.",null,null,null,null,null,"Kaniuliuotas ilgintuvas"]
["2.64.18.","Valymo viela - 1 vnt.",null,null,null,null,null,"Valymo viela"]
["2.64.19.","Vinies išėmėjas - 1 vnt.",null,null,null,null,null,"Vinies išėmėjas"]
["2.64.20.","Plaktukas - 1 vnt.",null,null,null,null,null,"Plaktukas"]
["2.64.21.","Sraigto išėmėjas - 1 vnt.",null,null,null,null,null,"Sraigto išėmėjas"]
["2.64.22.","Šešiakampis atsuktuvas - 1 vnt.",null,null,null,null,null,"Šešiakampis atsuktuvas "]
["2.64.23.","Grąžtas, Ø 4.0mm - 2 vnt.",null,null,null,null,null,"Grąžtas, Ø 4.0mm"]
["2.64.24.","Proksimalinio sraigto atsuktuvas - 1 vnt.",null,null,null,null,null,"Proksimalinio sraigto atsuktuvas"]
["2.64.25.","Proksimalinio sraigto grąžtas - 1 vnt.",null,null,null,null,null,"Proksimalinio sraigto grąžtas"]
["2.64.26.","Kaniuliuotas grąžtas - 1 vnt.",null,null,null,null,null,"Kaniuliuotas grąžtas"]
["2.64.27.","Viela su sriegiu, Ø 3.2 mm - 2 vnt.",null,null,null,null,null,"Viela su sriegiu, Ø 3.2 mm "]
["2.64.28.","Gylio ribotuvas, Ø 10 mm - 1 vnt.",null,null,null,null,null,"Gylio ribotuvas, Ø 10 mm"]
["2.64.29.","Priveržimo raktas - 1 vnt.",null,null,null,null,null,"Priveržimo raktas"]
["2.64.30.","Plaktukas - 1 vnt.",null,null,null,null,null,"Plaktukas"]
["2.64.31.","Veržlė - 1 vnt.",null,null,null,null,null,"Veržlė"]
["2.64.32.","Minkštųjų audinių apsauga - 1 vnt.",null,null,null,null,null,"Minkštųjų audinių apsauga"]
["2.64.33.","Proksimalinio sraigto raktas - 1 vnt.",null,null,null,null,null,"Proksimalinio sraigto raktas"]
["2.64.34.","Plaktuko ašis - 1 vnt.",null,null,null,null,null,"Plaktuko ašis"]
["2.64.35.","Liniuotė - 1 vnt.",null,null,null,null,null,"Liniuotė"]
["2.64.36.","Kaniuliuota yla - 1 vnt.",null,null,null,null,null,"Kaniuliuota yla"]
["2.64.37.","Sujungimo varžtas - 1 vnt.",null,null,null,null,null,"Sujungimo varžtas"]
["2.64.38.","Nukreipimo viela, Ø 3.2 mm - 2 vnt.",null,null,null,null,null,"Nukreipimo viela, Ø 3.2 mm "]
["2.64.39.","Proksimalinis nukreipėjas ilgoms vinims - 1 vnt.",null,null,null,null,null,"Proksimalinis nukreipėjas ilgoms vinims"]
["2.64.40.","Distalinis nukreipėjas ilgoms vinims - 1 vnt.",null,null,null,null,null,"Distalinis nukreipėjas ilgoms vinims"]
["2.64.41.","Taikiklis - 1 vnt.",null,null,null,null,null,"Taikiklis"]
["2.64.42.","T formos grąžtas, Ø 5.2mm - 1 vnt.",null,null,null,null,null,"T formos grąžtas, Ø 5.2mm"]
["2.64.43.","Grąžtas, Ø 5.2mm - 1 vnt.",null,null,null,null,null,"Grąžtas, Ø 5.2mm"]
["2.64.44.","Trokaro apsauga Ø 8.1 - 1 vnt.",null,null,null,null,null,"Trokaro apsauga Ø 8.1"]
["2.64.45.","Grąžto apsauga Ø 5.2 - 1 vnt.",null,null,null,null,null,"Grąžto apsauga Ø 5.2"]
["2.64.46.","Trokaras Ø 8.1 - 1 vnt.",null,null,null,null,null,"Trokaras Ø 8.1"]
["2.64.47.","Nukreipimo viela Ø 2.5 - 1 vnt.",null,null,null,null,null,"Nukreipimo viela Ø 2.5"]
["2.64.48.","Kanalo instrumentas - 1 vnt.",null,null,null,null,null,"Kanalo instrumentas"]
["2.64.49.","Šešiakampis L formos raktas - 1 vnt.",null,null,null,null,null,"Šešiakampis L formos raktas"]
["2.64.50.","Vielos laikymo rankena - 1 vnt.",null,null,null,null,null,"Vielos laikymo rankena"]
["2.64.51.","Proksimalinė veržlė - 1 vnt.",null,null,null,null,null,"Proksimalinė veržlė"]
["2.64.52.","Veržlė - 1 vnt.",null,null,null,null,null,"Veržlė"]
["2.64.53.","Distalinė veržlė - 1 vnt.",null,null,null,null,null,"Distalinė veržlė"]
["2.64.54.","Lankstus grąžtas - 2 vnt.",null,null,null,null,null,"Lankstus grąžtas"]
["2.64.55.","Grąžto antgalis, Ø 9mm - 1 vnt.",null,null,null,null,null,"Grąžto antgalis, Ø 9mm"]
["2.64.56.","Grąžto antgalis, Ø 10mm - 1 vnt.",null,null,null,null,null,"Grąžto antgalis, Ø 10mm"]
["2.64.57.","Grąžto antgalis, Ø 11mm - 1 vnt.",null,null,null,null,null,"Grąžto antgalis, Ø 11mm"]
["2.64.58.","Grąžto antgalis, Ø 12mm - 1 vnt.",null,null,null,null,null,"Grąžto antgalis, Ø 12mm"]
["2.64.59.","Grąžto antgalis, Ø 13mm - 1 vnt.",null,null,null,null,null,"Grąžto antgalis, Ø 13mm"]
["2.64.60.","E forma - 1 vnt.",null,null,null,null,null,"E forma"]
["2.64.61.","T formos fiksavimo instrumentas - 1 vnt.",null,null,null,null,null,"T formos fiksavimo instrumentas"]
["2.64.62.","Grąžtas, Ø 4.3mm - 2 vnt.",null,null,null,null,null,"Grąžtas, Ø 4.3mm"]
["2.64.63.","Grąžto apsauga, Ø 4.3 - 2 vnt.",null,null,null,null,null,"Grąžto apsauga, Ø 4.3"]
["2.64.64.","Šešiakampis L formos raktas - 1 vnt.",null,null,null,null,null,"Šešiakampis L formos raktas"]
["2.64.65.","Gylio ribotuvas, Ø 4.3mm - 1 vnt.",null,null,null,null,null,"Gylio ribotuvas, Ø 4.3mm"]
["2.64.66.","Vinies įvedimo rankena - 1 vnt",null,null,null,null,null,"Vinies įvedimo rankena"]
["2.64.67.","130° nukreipėjas statiniam užrakinimui - 1 vnt.",null,null,null,null,null,"130° nukreipėjas statiniam užrakinimui"]
["2.64.68.","Sujungimo varžtas - 1 vnt.",null,null,null,null,null,"Sujungimo varžtas"]
["2.64.69.","T formos rankenėlė su greito pajungimo jungtimi - 1 vnt.",null,null,null,null,null,"T formos rankenėlė su greito pajungimo jungtimi"]
["2.64.70.","130° nukreipėjas dinaminiam užrakinimui - 1 vnt.",null,null,null,null,null,"130° nukreipėjas dinaminiam užrakinimui"]
["2.64.71.","Grąžtas, Ø 17.0 mm  - 1 vnt.",null,null,null,null,null,"Grąžtas, Ø 17.0 mm "]
["2.64.72.","Grąžto apsauga - 1 vnt.",null,null,null,null,null,"Grąžto apsauga"]
["2.64.73.","Apsauga - 1 vnt.",null,null,null,null,null,"Apsauga"]
["2.64.74.","L formos fiksavimo instrumentas - 1 vnt",null,null,null,null,null,"L formos fiksavimo instrumentas"]
["2.65.","Instrumentai, skirti darbui su intramedulinėmis žąstikaulio vinimis. Privaloma pateikti 2 rinkinius. Instrumentus pateikti panaudos būdu Vieno rinkinio sudėtis:",2,"rinkinys",0,{"$f":"IF(ISBLANK(E442),\"\", PRODUCT(C442,E442))","v":0},"831000, katalogas 3, p. 131, Changzhou Kanghui Medical Innovation Co., Ltd. a Medtronic company"]
["2.65.1.","Instrumentų sterilizavimo konteineris - 1 vnt",null,null,null,null,null,"Instrumentų sterilizavimo konteineris"]
["2.65.2.","Plaktuko ašis - 1 vnt.",null,null,null,null,null,"Plaktuko ašis"]
["2.65.3.","Plaktukas - 1 vnt",null,null,null,null,null,"Plaktukas"]
["2.65.4.","Liniuotė - 1 vnt.",null,null,null,null,null,"Liniuotė"]
["2.65.5.","Nukreipimo vielos laikiklis - 1 vnt",null,null,null,null,null,"Nukreipimo vielos laikiklis"]
["2.65.6.","T formos atsuktuvas - 1 vnt.",null,null,null,null,null,"T formos atsuktuvas"]
["2.65.7.","Trokaras - 1 vnt",null,null,null,null,null,"Trokaras"]
["2.65.8.","Grąžto apsauga Ø 2.9 - 1 vnt",null,null,null,null,null,"Grąžto apsauga Ø 2.9"]
["2.65.9.","Grąžto apsauga Ø 5.0 - 1 vnt",null,null,null,null,null,"Grąžto apsauga Ø 5.0"]
["2.65.10.","Grąžto apsauga Ø 3.8 - 1 vnt",null,null,null,null,null,"Grąžto apsauga Ø 3.8"]
["2.65.11.","Atsuktuvas (3.5 mm) - 1 vnt",null,null,null,null,null,"Atsuktuvas (3.5 mm)"]
["2.65.12.","Atsuktuvas (2.5 mm) - 1 vnt",null,null,null,null,null,"Atsuktuvas (2.5 mm)"]
["2.65.13.","Yla - 1 vnt.",null,null,null,null,null,"Yla"]
["2.65.14.","Rankena - 1 vnt",null,null,null,null,null,"Rankena"]
["2.65.15.","Jėgos instrumento adaptorius - 1 vnt",null,null,null,null,null,"Jėgos instrumento adaptorius"]
["2.65.16.","Sraigtų ilgio matuoklis - 1 vnt",null,null,null,null,null,"Sraigtų ilgio matuoklis"]
["2.65.17.","Grąžtas, Ø 3.8 mm - 1 vnt",null,null,null,null,null,"Grąžtas, Ø 3.8 mm"]
["2.65.18.","Grąžtas, Ø 2.9 mm - 1 vnt",null,null,null,null,null,"Grąžtas, Ø 2.9 mm"]
["2.65.19.","Grąžtas, Ø 3.6/4.9 mm - 1 vnt",null,null,null,null,null,"Grąžtas, Ø 3.6/4.9 mm"]
["2.65.20.","Nukreipimo viela, Ø 3.2mm - 1 vnt",null,null,null,null,null,"Nukreipimo viela, Ø 3.2mm"]
["2.65.21.","Priveržimo raktas - 1 vnt.",null,null,null,null,null,"Priveržimo raktas"]
["2.65.22.","Vinies ištraukimo adaptorius - 1 vnt",null,null,null,null,null,"Vinies ištraukimo adaptorius"]
["2.65.23.","Vinies ištraukimo veržlė - 1 vnt",null,null,null,null,null,"Vinies ištraukimo veržlė"]
["2.65.24.","Veržlė - 1 vnt",null,null,null,null,null,"Veržlė"]
["2.65.25.","Vinies įvedimo rankena - 1 vnt",null,null,null,null,null,"Vinies įvedimo rankena"]
["2.65.26.","Distalinis nukreipėjas - 1 vnt",null,null,null,null,null,"Distalinis nukreipėjas"]
["2.65.27.","Veržlė - 1 vnt",null,null,null,null,null,"Veržlė"]
["2.65.28.","Kiršnerio viela, Ø 2.5 mm -3 vnt",null,null,null,null,null,"Kiršnerio viela, Ø 2.5 mm"]
["2.65.29.","Grąžtas, Ø 9.5mm - 1 vnt",null,null,null,null,null,"Grąžtas, Ø 9.5mm"]
["2.65.30.","Nukreipimo viela vinims - 1 vnt",null,null,null,null,null,"Nukreipimo viela vinims"]
["2.65.31.","Nukreipimo viela su alyvuogės formos galu - 1 vnt",null,null,null,null,null,"Nukreipimo viela su alyvuogės formos galu"]
["2.65.32.","Lankstus grąžtas, Ø 7 mm - 1 vnt",null,null,null,null,null,"Lankstus grąžtas, Ø 7 mm"]
["2.65.33.","Lankstus grąžtas, Ø 8 mm - 1 vnt",null,null,null,null,null,"Lankstus grąžtas, Ø 8 mm"]
["2.65.34.","Lankstus grąžtas ø 9 mm - 1vnt",null,null,null,null,null,"Lankstus grąžtas ø 9 mm"]
[null,null,null,null,"Suma be PVM",{"$f":"IF((COUNT(C148:C476)<>COUNT(F148:F476)),\"\", SUM(F148:F476))","v":283219.67},{"$f":"IF((COUNT(C148:C476)<>COUNT(F148:F476)),\"Neužpildytos visų objektų kainos\", SUM(F148:F476))","v":283219.67}]
[null,null,null,null,"PVM suma",14160.98]
[null,null,null,null,"Suma su PVM",{"$f":"IF(ISBLANK(F478), \"\", SUM(F477:F478))","v":297380.64999999997}]

{"sheet":"Subtiekėjai","index":1,"n_rows":100,"n_cols":9,"rows_kept":100,"cut":false,"hidden":false,"merged":[[32,0,32,3],[32,4,32,9],[19,0,19,10],[16,1,16,3],[15,1,15,3],[22,0,22,9],[23,0,23,9],[25,0,25,9],[29,0,29,3],[29,4,29,9],[17,1,17,3],[17,4,17,5],[17,6,17,7],[17,8,17,9],[21,0,21,3],[21,4,21,9],[14,1,14,3],[15,4,15,5],[16,4,16,5],[8,0,8,1],[8,2,8,4],[8,5,8,7],[12,6,12,7],[13,6,13,7],[14,6,14,7],[15,6,15,7],[16,6,16,7],[13,1,13,3],[12,1,12,3],[12,4,12,5],[13,4,13,5],[14,4,14,5],[8,8,8,9],[10,0,10,9],[6,0,6,1],[6,2,6,4],[6,5,6,7],[6,8,6,9],[7,0,7,1],[7,2,7,4],[7,5,7,7],[7,8,7,9],[1,0,1,10],[5,0,5,1],[5,2,5,4],[5,5,5,7],[5,8,5,9],[4,0,4,1],[4,2,4,4],[4,5,4,7],[4,8,4,9],[3,0,3,1],[3,2,3,4],[3,5,3,7],[3,8,3,9],[12,8,12,9],[13,8,13,9],[14,8,14,9],[15,8,15,9],[16,8,16,9]]}
[]
["Subtiekėjai ir jiems perduodama vykdyti pirkimo sutarties dalis:"]
[]
["Eil. Nr",null,"Subtiekėjo pavadinimas",null,null,"Pirkimo objekto dalies, perduodamos vykdyti subtiekėjui, aprašymas",null,null,"Procentas perduodamos vykdyti pirkimo objekto dalies nuo pasiūlymo kainos su PVM (pildoma, jei ūkio subjektas vykdys sutartį)"]
[]
[]
[]
[]
[]
[]
["Kartu su pasiūlymu pateikiami šie dokumentai:"]
[]
["Eil.Nr.","Dokumentas",null,null,"Ar dokumnetas konfidencialus? (Taip/Ne)",null,"Prisegtos bylos (failo) pavadinimas ",null,"Paaiškinimas, kokia konkreti informacija dokumente yra konfidenciali"]
[1,"EBVPD",null,null,"Ne",null,"EBVPD"]
[2,"Katalogas 1",null,null,"Taip",null,"Katalogas 1 - KONFIDENCIALU",null,"Prekių parametrai"]
[3,"Katalogas 3",null,null,"Taip",null,"Katalogas 3 - KONFIDENCIALU",null,"Prekių parametrai"]
[]
[]
[]
["Pasirašydamas šį pasiūlymą, tvirtintu, kad:\n1) pasiūlymo dokumentuose pateikti duomenys yra tikri;\n2) siūlomas Pirkimo objektas visiškai atitinka Pirkimo dokumentuose nustatytus reikalavimus;\n3) sutinku su visomis Pirkimo dokumentuose nustatytomis sąlygomis;\n4) pasiūlymas galioja iki termino, nustatyto Pirkimo dokumentuose; \n5) mes esame / nesame (nereikalingą išbraukti) laikomi asocijuotais (susijusiais) su Perkančiuoju subjektu pagal Lietuvos Respublikoje galiojančių teisės aktų (Lietuvos Respublikos pelno mokesčio, Lietuvos Respublikos pridėtinės vertės mokesčio ir Lietuvos Respublikos gyventojų pajamų mokesčio įstatymų) nuostatas; \n6) savo pasiūlymo galiojimą užtikrinsiu pagal Specialiųjų sąlygų 6.1 punktą (jei taikoma)."]
[]
["Pasiūlymo galiojimo užtikrinimui pateikiame :"]
[]
["(Nurodyti užtikrinimo būdą, dydį, dokumentus)"]
[]
["\nPasiūlymas galioja iki termino, nustatyto pirkimo dokumentuose.\n\nPasiūlymo neatskiriama dalis yra (rašoma, jeigu buvo reikalauta prie pasiūlymo pridėti atitinkamą dokumentą)"]
[]
[]
[]
["Tiekėjo arba jo įgalioto asmens pareigų pavadinimas",null,null,null,"Direktorius"]
[]
[]
["Pasirašančio asmens vardas ir pavardė",null,null,null,"Gintaras Vaitkevičius"]
[]
[]
[]
[]
[]
[]
[]
[]
[]
[]
[]
[]
[]
[]
[]
[]
[]
[]
[]
[]
[]
[]
[]
[]
[]
[]
[]
[]
[]
[]
[]
[]
[]
[]
[]
[]
[]
[]
[]
[]
[]
[]
[]
[]
[]
[]
[]
[]
[]
[]
[]
[]
[]
[]
[]
[]
[]
[]
[]
[]
[]
[]
[]
[]
[]
[]
["3410-1 2019-06-26 15:39:29"]